{"text_format":"1","workbook":"xlsx","n_sheets":14,"sheets":["Instructions","Data","Gases","IPCC 1996 Categories","IPCC 2006 Categories","Fuels 1996","Fuels 2006","C pools","Units","Distribution Shapes","EF Types","Countries","Source of Data","Confidence Limit"],"not_rendered":{"charts":0,"images":1,"macros":1,"external_links":0,"defined_names":24,"comments":1,"pivot_tables":0},"unopened":[],"bounds":{"document_bytes":16777216,"sheet_cells":100000,"rows_first":2000,"rows_last":500,"rows_between":2000,"halvings":0,"cell_chars":16384,"cell_head_chars":4096},"cells_cut":0,"cells_raw":0,"read":"whole","date_system":"1900"}

{"sheet":"Instructions","index":0,"n_rows":47,"n_cols":2,"rows_kept":47,"cut":false,"hidden":false,"merged":[]}
["EFDB Bulk Import Template version 3.2"]
[]
["This template is designated to generate SQL scripts for EFDB bulk import purposes."]
["One instance of template can be used to generate up to 1000 records."]
[]
["Sheets"]
["The sheet labeled \"Data\" is the one where data should be entered."]
["There are also several nomenclature sheets containing nomenclature data that must be used"]
["within particular nomenclature fields according to following table."]
[]
["Field","Sheet from which values must be used"]
["IPCC 1996 Categories","IPCC 1996 Categories"]
["IPCC 2006 Categories","IPCC 2006 Categories"]
["Gases","Gases"]
["Fuel 1996","Fuels 1996"]
["Fuel 2006","Fuels 2006"]
["C pool","C pools"]
["Unit","Units"]
["Common Unit","Units"]
["Source of Data","Source of Data"]
["Distribution Shape","Distribution Shapes"]
["Type of Parameter","EF Types"]
["Provider Country","Countries"]
[]
["Only valid nomenclature values supplied in nomenclature sheets"]
["shall be used to maintain data consistency!"]
[]
["Entering data"]
["Start entering data at column B and do not skip columns."]
["If EF_ID field is empty, new emission factor record will be inserted, otherwise"]
["existing emission factor with corresponding EF_ID will be updated."]
["Mandatory fields are highlighted with this color."]
["Optional fields are highlighted with this color."]
[]
["If you find that the Unit list (sheet) does not contain the desired value, you can manually type in the new value without code in parenthesis."]
["Your custom unit will be automatically created during the Bulk Import procedure."]
[]
["Generating and applying Bulk Import SQL script"]
["Click Generate Bulk Import SQL script button when finished entering data."]
["You will be prompted where to save generated SQL script."]
["Generated SQL script must be then manually executed within EFDB MySQL database."]
["It is recommended to use standard mysql command line utility which is part of the"]
["MySQL server installation. Example:"]
["mysql -v -u efdb -p EFDB < efdb_bulk_import.sql"]
[]
["It is strongly recommended to backup EFDB MySQL database"]
["before executing any of the Bulk Import SQL scripts!!!"]

{"sheet":"Data","index":1,"n_rows":42,"n_cols":2,"rows_kept":42,"cut":false,"hidden":false,"merged":[[39,0,39,1],[40,0,40,1],[41,0,41,1],[24,0,25,1],[35,0,35,1],[31,0,34,0],[36,0,36,1],[37,0,37,1],[38,0,38,1],[28,0,28,1],[29,0,29,1],[30,0,30,1],[22,0,22,1],[23,0,23,1],[26,0,26,1],[27,0,27,1],[16,0,16,1],[17,0,17,1],[18,0,18,1],[19,0,19,1],[20,0,20,1],[21,0,21,1],[15,0,15,1],[0,0,0,1],[1,0,1,1],[2,0,2,1],[3,0,3,1],[4,0,4,1],[5,0,5,1],[6,0,6,1],[7,0,7,1],[8,0,12,0],[13,0,13,1],[14,0,14,1]]}
["EF ID"]
["1996 Source/Sink Categories (CODE1,...)"]
["2006 Source/Sink Categories (CODE1,...)"]
["Gases (ID1,ID2,...)"]
["Fuel 1996 (ID)"]
["Fuel 2006 (ID)"]
["C pool"]
["Description"]
["Properties","Technologies/Practices"]
[null,"Abatement/Control technologies"]
[null,"Parameters/Conditions"]
[null,"Region/Regional conditions"]
[null,"Other Properties"]
["Value"]
["Unit (ID)"]
["Value in Common Units"]
["Common Unit"]
["Equation"]
["IPCC Worksheet Number"]
["Source of Data"]
["Full Technical Reference"]
["URL"]
["Reference Language"]
["Abstract in English"]
["Lower/Upper Confidence Limit (Uncertainties expressed as 95% confidence limit)"]
[]
["Data Quality"]
["Data Quality Reference"]
["Other Info on Data Quality"]
["Distribution Shape (ID)"]
["Type of Parameter (ID)"]
["Measured","Measurement Technique/Standard"]
[null,"Periodicity of Measurement"]
[null,"External Quality Control Performed"]
[null,"Date of Measurement"]
["Date Calculated"]
["Comments from Data Provider"]
["Data Provider"]
["Data Provider Country (CODE)"]
["Data Provider Contact (email address)"]
["Date Submitted to EFDB by Data Provider (yyyy-mm-dd)"]
["Date Posted to EFDB by TSU"]

{"sheet":"Gases","index":2,"n_rows":82,"n_cols":3,"rows_kept":82,"cut":false,"hidden":false,"merged":[]}
["pol_id","pol_name","concat_ws(' ',pollutants_0.pol_name,concat('(',pollutants_0.pol_id,')'))"]
["E02","(CF3)2CFOCH3","(CF3)2CFOCH3 (E02)"]
["E36","(CF3)2CHOCH3","(CF3)2CHOCH3 (E36)"]
["E35","(CF3)2CHOCHF2","(CF3)2CHOCHF2 (E35)"]
["E05","(CF3)2CHOH","(CF3)2CHOH (E05)"]
["E03","(CF3)CH2OH","(CF3)CH2OH (E03)"]
["E37","-(CF2)4CH(OH)-","-(CF2)4CH(OH)- (E37)"]
["008","AMMONIA","AMMONIA (008)"]
["E22","c-C3F6","c-C3F6 (E22)"]
["g21","c-C4F8","c-C4F8 (g21)"]
["g18","C2F6","C2F6 (g18)"]
["g19","C3F8","C3F8 (g19)"]
["g20","C4F10","C4F10 (g20)"]
["g25","C4F6","C4F6 (g25)"]
["E38","C4F8O","C4F8O (E38)"]
["g22","C5F12","C5F12 (g22)"]
["g26","C5F8","C5F8 (g26)"]
["g23","C6F14","C6F14 (g23)"]
["006","CARBON DIOXIDE","CARBON DIOXIDE (006)"]
["005","CARBON MONOXIDE","CARBON MONOXIDE (005)"]
["I01","CF3 I","CF3 I (I01)"]
["E04","CF3CF2CH2OH","CF3CF2CH2OH (E04)"]
["g17","CF4","CF4 (g17)"]
["B01","CH2Br2","CH2Br2 (B01)"]
["C04","CH2Cl2","CH2Cl2 (C04)"]
["C03","CH3Cl","CH3Cl (C03)"]
["E01","CH3OCH3","CH3OCH3 (E01)"]
["C02","CHCl3","CHCl3 (C02)"]
["E18","H-Galden 1040x","H-Galden 1040x (E18)"]
["E09","HCFE-235da2","HCFE-235da2 (E09)"]
["g08","HFC-125","HFC-125 (g08)"]
["g09","HFC-134","HFC-134 (g09)"]
["g10","HFC-134a","HFC-134a (g10)"]
["g12","HFC-143","HFC-143 (g12)"]
["g13","HFC-143a","HFC-143a (g13)"]
["H01","HFC-152","HFC-152 (H01)"]
["g11","HFC-152a","HFC-152a (g11)"]
["H02","HFC-161","HFC-161 (H02)"]
["g14","HFC-227ea","HFC-227ea (g14)"]
["g04","HFC-23","HFC-23 (g04)"]
["H03","HFC-236cb","HFC-236cb (H03)"]
["H04","HFC-236ea","HFC-236ea (H04)"]
["g15","HFC-236fa","HFC-236fa (g15)"]
["g16","HFC-245ca","HFC-245ca (g16)"]
["H05","HFC-245fa","HFC-245fa (H05)"]
["g05","HFC-32","HFC-32 (g05)"]
["H06","HFC-365mfc","HFC-365mfc (H06)"]
["g06","HFC-41","HFC-41 (g06)"]
["g07","HFC-43-10mee","HFC-43-10mee (g07)"]
["E06","HFE-125","HFE-125 (E06)"]
["E07","HFE-134","HFE-134 (E07)"]
["E08","HFE-143a","HFE-143a (E08)"]
["E23","HFE-227ea","HFE-227ea (E23)"]
["E24","HFE-236ea2","HFE-236ea2 (E24)"]
["E25","HFE-236fa","HFE-236fa (E25)"]
["E10","HFE-245cb2","HFE-245cb2 (E10)"]
["E26","HFE-245fa1","HFE-245fa1 (E26)"]
["E11","HFE-245fa2","HFE-245fa2 (E11)"]
["E12","HFE-254cb2","HFE-254cb2 (E12)"]
["E27","HFE-263fb2","HFE-263fb2 (E27)"]
["E28","HFE-329mcc2","HFE-329mcc2 (E28)"]
["E29","HFE-338mcf2","HFE-338mcf2 (E29)"]
["E13","HFE-347mcc3","HFE-347mcc3 (E13)"]
["E30","HFE-347mcf2","HFE-347mcf2 (E30)"]
["E31","HFE-356mec3","HFE-356mec3 (E31)"]
["E32","HFE-356pcc3","HFE-356pcc3 (E32)"]
["E33","HFE-356pcf2","HFE-356pcf2 (E33)"]
["E14","HFE-356pcf3","HFE-356pcf3 (E14)"]
["E34","HFE-365mcf3","HFE-365mcf3 (E34)"]
["E15","HFE-374pc2","HFE-374pc2 (E15)"]
["E16","HFE-7100","HFE-7100 (E16)"]
["E17","HFE-7200","HFE-7200 (E17)"]
["E20","HG-01","HG-01 (E20)"]
["E19","HG-10","HG-10 (E19)"]
["004","METHANE","METHANE (004)"]
["002","NITROGEN OXIDES (NO+NO2)","NITROGEN OXIDES (NO+NO2) (002)"]
["015","Nitrogen Trifluoride","Nitrogen Trifluoride (015)"]
["007","NITROUS OXIDE","NITROUS OXIDE (007)"]
["003","NON METHANE VOLATILE ORGANIC COMPOUNDS","NON METHANE VOLATILE ORGANIC COMPOUNDS (003)"]
["001","SULPHUR DIOXIDE (SO2+SO3)","SULPHUR DIOXIDE (SO2+SO3) (001)"]
["g24","Sulphur Hexafluoride","Sulphur Hexafluoride (g24)"]
["SF5","Trifluoromethyl Sulphur Pentafluoride","Trifluoromethyl Sulphur Pentafluoride (SF5)"]

{"sheet":"IPCC 1996 Categories","index":3,"n_rows":244,"n_cols":3,"rows_kept":244,"cut":false,"hidden":false,"merged":[]}
["IPCC 1996 Code","IPCC 1996 Name","IPCC 1996 Code - Name"]
["1","Energy","1 - Energy"]
["1A","Fuel Combustion Activities","1A - Fuel Combustion Activities"]
["1A1","Energy Industries","1A1 - Energy Industries"]
["1A1a","Public Electricity and Heat Production","1A1a - Public Electricity and Heat Production"]
["1A1a1","Public Electricity Generation","1A1a1 - Public Electricity Generation"]
["1A1a2","Public Combined Heat and Power Generation (CHP)","1A1a2 - Public Combined Heat and Power Generation (CHP)"]
["1A1a3","Public Heat Plants","1A1a3 - Public Heat Plants"]
["1A1b","Petroleum Refining","1A1b - Petroleum Refining"]
["1A1c","Manufacture of Solid Fuels and Other Energy Industries","1A1c - Manufacture of Solid Fuels and Other Energy Industries"]
["1A1c1","Manufacture of Solid Fuels","1A1c1 - Manufacture of Solid Fuels"]
["1A1c2","Other Energy Industries (please specify)","1A1c2 - Other Energy Industries (please specify)"]
["1A2","Manufacturing Industries and Construction (ISIC)","1A2 - Manufacturing Industries and Construction (ISIC)"]
["1A2a","Iron and Steel","1A2a - Iron and Steel"]
["1A2b","Non-Ferrous Metals","1A2b - Non-Ferrous Metals"]
["1A2c","Chemicals","1A2c - Chemicals"]
["1A2d","Pulp, Paper and Print","1A2d - Pulp, Paper and Print"]
["1A2e","Food Processing, Beverages and Tobacco","1A2e - Food Processing, Beverages and Tobacco"]
["1A2f","Other (please specify)","1A2f - Other (please specify)"]
["1A3","Transport","1A3 - Transport"]
["1A3a","Civil Aviation","1A3a - Civil Aviation"]
["1A3a1","International Aviation","1A3a1 - International Aviation"]
["1A3a2","Domestic","1A3a2 - Domestic"]
["1A3b","Road Transportation","1A3b - Road Transportation"]
["1A3b1","Cars","1A3b1 - Cars"]
["1A3b2","Light Duty Trucks","1A3b2 - Light Duty Trucks"]
["1A3b3","Heavy Duty Trucks and Buses","1A3b3 - Heavy Duty Trucks and Buses"]
["1A3b4","Motorcycles","1A3b4 - Motorcycles"]
["1A3b5","Evaporative Emissions from Vehicles","1A3b5 - Evaporative Emissions from Vehicles"]
["1A3c","Railways","1A3c - Railways"]
["1A3d","Navigation","1A3d - Navigation"]
["1A3d1","International Marine (Bunkers)","1A3d1 - International Marine (Bunkers)"]
["1A3d2","National Navigation","1A3d2 - National Navigation"]
["1A3e","Other Transportation","1A3e - Other Transportation"]
["1A3e1","Pipeline Transport","1A3e1 - Pipeline Transport"]
["1A3e2","Off-road","1A3e2 - Off-road"]
["1A4","Other Sectors","1A4 - Other Sectors"]
["1A4a","Commercial/Institutional","1A4a - Commercial/Institutional"]
["1A4b","Residential","1A4b - Residential"]
["1A4c","Agriculture/Forestry/Fishing","1A4c - Agriculture/Forestry/Fishing"]
["1A4c1","Stationary","1A4c1 - Stationary"]
["1A4c2","Off-road Vehicles and Other Machinery","1A4c2 - Off-road Vehicles and Other Machinery"]
["1A4c3","Fishing","1A4c3 - Fishing"]
["1A5","Other","1A5 - Other"]
["1A5a","Stationary","1A5a - Stationary"]
["1A5b","Mobile","1A5b - Mobile"]
["1B","Fugitive Emissions from Fuels","1B - Fugitive Emissions from Fuels"]
["1B1","Solid Fuels","1B1 - Solid Fuels"]
["1B1a","Coal Mining","1B1a - Coal Mining"]
["1B1a1","Underground Mines","1B1a1 - Underground Mines"]
["1B1a2","Surface Mines","1B1a2 - Surface Mines"]
["1B1b","Solid Fuel Transformation","1B1b - Solid Fuel Transformation"]
["1B1c","Other (please specify)","1B1c - Other (please specify)"]
["1B2","Oil and Natural Gas","1B2 - Oil and Natural Gas"]
["1B2a","Oil","1B2a - Oil"]
["1B2a1","Exploration","1B2a1 - Exploration"]
["1B2a2","Production","1B2a2 - Production"]
["1B2a3","Transport","1B2a3 - Transport"]
["1B2a4","Refining/Storage","1B2a4 - Refining/Storage"]
["1B2a5","Distribution of Oil Products","1B2a5 - Distribution of Oil Products"]
["1B2a6","Other (please specify)","1B2a6 - Other (please specify)"]
["1B2b","Natural Gas","1B2b - Natural Gas"]
["1B2b1","Production/Processing","1B2b1 - Production/Processing"]
["1B2b2","Transmission/Distribution","1B2b2 - Transmission/Distribution"]
["1B2b3","Other leakage","1B2b3 - Other leakage"]
["1B2c","Venting and Flaring","1B2c - Venting and Flaring"]
["1B2c1","Oil","1B2c1 - Oil"]
["1B2c2","Gas","1B2c2 - Gas"]
["1B2c3","Combined","1B2c3 - Combined"]
["1B2d","Other (please specify)","1B2d - Other (please specify)"]
["2","Industrial Processes","2 - Industrial Processes"]
["2A","Mineral Products","2A - Mineral Products"]
["2A1","Cement Production","2A1 - Cement Production"]
["2A2","Lime Production","2A2 - Lime Production"]
["2A3","Limestone and Dolomite Use","2A3 - Limestone and Dolomite Use"]
["2A4","Soda Ash Production and Use","2A4 - Soda Ash Production and Use"]
["2A5","Asphalt Roofing","2A5 - Asphalt Roofing"]
["2A6","Road Paving with Asphalt","2A6 - Road Paving with Asphalt"]
["2A7","Other (please specify)","2A7 - Other (please specify)"]
["2B","Chemical Industry","2B - Chemical Industry"]
["2B1","Ammonia Production","2B1 - Ammonia Production"]
["2B2","Nitric Acid Production","2B2 - Nitric Acid Production"]
["2B3","Adipic Acid Production","2B3 - Adipic Acid Production"]
["2B4","Carbide Production","2B4 - Carbide Production"]
["2B5","Other (please specify)","2B5 - Other (please specify)"]
["2C","Metal Production","2C - Metal Production"]
["2C1","Iron and Steel Production","2C1 - Iron and Steel Production"]
["2C2","Ferroalloys Production","2C2 - Ferroalloys Production"]
["2C3","Aluminium Production","2C3 - Aluminium Production"]
["2C4","SF6 Used in Aluminium and Magnesium Foundries","2C4 - SF6 Used in Aluminium and Magnesium Foundries"]
["2C5","Other (please specify)","2C5 - Other (please specify)"]
["2D","Other Production","2D - Other Production"]
["2D1","Pulp and Paper","2D1 - Pulp and Paper"]
["2D2","Food and Drink","2D2 - Food and Drink"]
["2E","Production of Halocarbons and Sulphur Hexafluoride","2E - Production of Halocarbons and Sulphur Hexafluoride"]
["2E1","By-product Emissions","2E1 - By-product Emissions"]
["2E2","Fugitive Emissions","2E2 - Fugitive Emissions"]
["2E3","Other (please specify)","2E3 - Other (please specify)"]
["2F","Consumption of Halocarbons and Sulphur Hexafluoride","2F - Consumption of Halocarbons and Sulphur Hexafluoride"]
["2F1","Refrigeration and Air Conditioning Equipment","2F1 - Refrigeration and Air Conditioning Equipment"]
["2F2","Foam Blowing","2F2 - Foam Blowing"]
["2F3","Fire Extinguishers","2F3 - Fire Extinguishers"]
["2F4","Aerosols","2F4 - Aerosols"]
["2F5","Solvents","2F5 - Solvents"]
["2F6","Other (please specify)","2F6 - Other (please specify)"]
["2G","Other (please specify)","2G - Other (please specify)"]
["3","Solvent and Other Product Use","3 - Solvent and Other Product Use"]
["3A","Paint Application","3A - Paint Application"]
["3B","Degreasing and Dry Cleaning","3B - Degreasing and Dry Cleaning"]
["3C","Chemical Product, Manufacture and Processing","3C - Chemical Product, Manufacture and Processing"]
["3D","Other","3D - Other"]
["4","Agriculture","4 - Agriculture"]
["4A","Enteric Fermentation","4A - Enteric Fermentation"]
["4A1","Cattle","4A1 - Cattle"]
["4A1a","Dairy","4A1a - Dairy"]
["4A1b","Non-Dairy","4A1b - Non-Dairy"]
["4A2","Buffalo","4A2 - Buffalo"]
["4A3","Sheep","4A3 - Sheep"]
["4A4","Goats","4A4 - Goats"]
["4A5","Camels and Llamas","4A5 - Camels and Llamas"]
["4A6","Horses","4A6 - Horses"]
["4A7","Mules and Asses","4A7 - Mules and Asses"]
["4A8","Swine","4A8 - Swine"]
["4A9","Poultry","4A9 - Poultry"]
["4A10","Other (please specify)","4A10 - Other (please specify)"]
["4B","Manure Management","4B - Manure Management"]
["4B1","Cattle","4B1 - Cattle"]
["4B1a","Dairy","4B1a - Dairy"]
["4B1b","Non-Dairy","4B1b - Non-Dairy"]
["4B2","Buffalo","4B2 - Buffalo"]
["4B3","Sheep","4B3 - Sheep"]
["4B4","Goats","4B4 - Goats"]
["4B5","Camels and Llamas","4B5 - Camels and Llamas"]
["4B6","Horses","4B6 - Horses"]
["4B7","Mules and Asses","4B7 - Mules and Asses"]
["4B8","Swine","4B8 - Swine"]
["4B9","Poultry","4B9 - Poultry"]
["4B10","Anaerobic","4B10 - Anaerobic"]
["4B11","Liquid Systems","4B11 - Liquid Systems"]
["4B12","Solid storage and Dry Lot","4B12 - Solid storage and Dry Lot"]
["4B13","Other (please specify)","4B13 - Other (please specify)"]
["4C","Rice Cultivation","4C - Rice Cultivation"]
["4C1","Irrigated","4C1 - Irrigated"]
["4C1a","Continuously Flooded","4C1a - Continuously Flooded"]
["4C1b","Intermittently Flooded","4C1b - Intermittently Flooded"]
["4C1b1","Single aeration","4C1b1 - Single aeration"]
["4C1b2","Multiple aeration","4C1b2 - Multiple aeration"]
["4C2","Rainfed","4C2 - Rainfed"]
["4C2a","Flood prone","4C2a - Flood prone"]
["4C2b","Drought prone","4C2b - Drought prone"]
["4C3","Deep Water","4C3 - Deep Water"]
["4C3a","Water depth 50 – 100 cm","4C3a - Water depth 50 – 100 cm"]
["4C3b","Water depth greater than 100 cm","4C3b - Water depth greater than 100 cm"]
["4C4","Other (please specify)","4C4 - Other (please specify)"]
["4D","Agricultural Soils","4D - Agricultural Soils"]
["4E","Prescribed Burning of Savannas","4E - Prescribed Burning of Savannas"]
["4F","Field Burning of Agricultural Residues","4F - Field Burning of Agricultural Residues"]
["4F1","Cereals","4F1 - Cereals"]
["4F2","Pulse","4F2 - Pulse"]
["4F3","Tuber and Root","4F3 - Tuber and Root"]
["4F4","Sugar Cane","4F4 - Sugar Cane"]
["4F5","Other (please specify)","4F5 - Other (please specify)"]
["4G","Other (please specify)","4G - Other (please specify)"]
["5","Land-Use Change & Forestry","5 - Land-Use Change & Forestry"]
["5A","Changes in Forest and Other Woody Biomass Stocks","5A - Changes in Forest and Other Woody Biomass Stocks"]
["5A1","Tropical Forests","5A1 - Tropical Forests"]
["5A1a","Wet/very moist","5A1a - Wet/very moist"]
["5A1b","Moist, short dry season","5A1b - Moist, short dry season"]
["5A1c","Moist, long dry season","5A1c - Moist, long dry season"]
["5A1d","Dry","5A1d - Dry"]
["5A1e","Mountain moist","5A1e - Mountain moist"]
["5A1f","Mountain dry","5A1f - Mountain dry"]
["5A1g","Plantations","5A1g - Plantations"]
["5A1h","Other (please specify)","5A1h - Other (please specify)"]
["5A2","Temperate Forests","5A2 - Temperate Forests"]
["5A2a","Coniferous","5A2a - Coniferous"]
["5A2b","Broadleaf","5A2b - Broadleaf"]
["5A2c","Plantations","5A2c - Plantations"]
["5A2d","Other (please specify)","5A2d - Other (please specify)"]
["5A3","Boreal Forests","5A3 - Boreal Forests"]
["5A3a","Mixed broadleaf/Coniferous","5A3a - Mixed broadleaf/Coniferous"]
["5A3b","Coniferous","5A3b - Coniferous"]
["5A3c","Forest tundra","5A3c - Forest tundra"]
["5A4","Grasslands/Tundra","5A4 - Grasslands/Tundra"]
["5A5","Other (please specify)","5A5 - Other (please specify)"]
["5B","Forest and Grassland Conversion","5B - Forest and Grassland Conversion"]
["5B1","Tropical Forests","5B1 - Tropical Forests"]
["5B1a","Wet/very moist","5B1a - Wet/very moist"]
["5B1b","Moist, short dry season","5B1b - Moist, short dry season"]
["5B1c","Moist, long dry season","5B1c - Moist, long dry season"]
["5B1d","Dry","5B1d - Dry"]
["5B1e","Mountain moist","5B1e - Mountain moist"]
["5B1f","Mountain dry","5B1f - Mountain dry"]
["5B1g","Plantations","5B1g - Plantations"]
["5B1h","Other (please specify)","5B1h - Other (please specify)"]
["5B2","Temperate Forests","5B2 - Temperate Forests"]
["5B2a","Coniferous","5B2a - Coniferous"]
["5B2b","Broadleaf","5B2b - Broadleaf"]
["5B2c","Plantations","5B2c - Plantations"]
["5B2d","Other (please specify)","5B2d - Other (please specify)"]
["5B3","Boreal Forests","5B3 - Boreal Forests"]
["5B3a","Mixed broadleaf/Coniferous","5B3a - Mixed broadleaf/Coniferous"]
["5B3b","Coniferous","5B3b - Coniferous"]
["5B3c","Forest tundra","5B3c - Forest tundra"]
["5B4","Grasslands/Tundra","5B4 - Grasslands/Tundra"]
["5B5","Other (please specify)","5B5 - Other (please specify)"]
["5C","Abandonment of Managed Lands","5C - Abandonment of Managed Lands"]
["5C1","Tropical Forests","5C1 - Tropical Forests"]
["5C2","Temperate Forests","5C2 - Temperate Forests"]
["5C3","Boreal Forests","5C3 - Boreal Forests"]
["5C4","Grasslands/Tundra","5C4 - Grasslands/Tundra"]
["5C5","Other (please specify)","5C5 - Other (please specify)"]
["5D","CO2 Emissions and Removals from Soil","5D - CO2 Emissions and Removals from Soil"]
["5E","Other (please specify)","5E - Other (please specify)"]
["5-FL","Forest Land","5-FL - Forest Land"]
["5-FL-1","Forest Land Remaining Forest Land","5-FL-1 - Forest Land Remaining Forest Land"]
["5-FL-2","Land Converted to Forest Land","5-FL-2 - Land Converted to Forest Land"]
["5-CL","Cropland","5-CL - Cropland"]
["5-CL-1","Cropland Remaining Cropland","5-CL-1 - Cropland Remaining Cropland"]
["5-CL-2","Land Converted to Cropland","5-CL-2 - Land Converted to Cropland"]
["5-GL","Grassland","5-GL - Grassland"]
["5-GL-1","Grassland Remaining Grassland","5-GL-1 - Grassland Remaining Grassland"]
["5-GL-2","Land Converted to Grassland","5-GL-2 - Land Converted to Grassland"]
["5-WL","Wetlands","5-WL - Wetlands"]
["5-WL-1","Wetlands Remaining Wetlands","5-WL-1 - Wetlands Remaining Wetlands"]
["5-WL-2","Land Converted to Wetlands","5-WL-2 - Land Converted to Wetlands"]
["5-SL","Settlements","5-SL - Settlements"]
["5-SL-1","Settlements Remaining Settlements","5-SL-1 - Settlements Remaining Settlements"]
["5-SL-2","Land Converted to Settlements","5-SL-2 - Land Converted to Settlements"]
["5-OL","Other Land","5-OL - Other Land"]
["5-OL-1","Other Land Remaining Other Land","5-OL-1 - Other Land Remaining Other Land"]
["5-OL-2","Land Converted to Other Land","5-OL-2 - Land Converted to Other Land"]
["6","Waste","6 - Waste"]
["6A","Solid Waste Disposal on Land","6A - Solid Waste Disposal on Land"]
["6A1","Managed Waste Disposal on Land","6A1 - Managed Waste Disposal on Land"]
["6A2","Unmanaged Waste Disposal Sites","6A2 - Unmanaged Waste Disposal Sites"]
["6A3","Other (please specify)","6A3 - Other (please specify)"]
["6B","Wastewater Handling","6B - Wastewater Handling"]
["6B1","Industrial Wastewater","6B1 - Industrial Wastewater"]
["6B2","Domestic and Commercial Wastewater","6B2 - Domestic and Commercial Wastewater"]
["6B3","Other (please specify)","6B3 - Other (please specify)"]
["6C","Waste Incineration","6C - Waste Incineration"]
["6D","Other (please specify)","6D - Other (please specify)"]
["7","Other (please specify)","7 - Other (please specify)"]

{"sheet":"IPCC 2006 Categories","index":4,"n_rows":297,"n_cols":3,"rows_kept":297,"cut":false,"hidden":false,"merged":[]}
["IPCC 2006 Code","IPCC 2006 Name","IPCC 2006 Code - Name"]
["1","Energy","1 - Energy"]
["1.A","Fuel Combustion Activities","1.A - Fuel Combustion Activities"]
["1.A.1","Energy Industries","1.A.1 - Energy Industries"]
["1.A.1.a","Main Activity Electricity and Heat Production","1.A.1.a - Main Activity Electricity and Heat Production"]
["1.A.1.a.i","Electricity Generation","1.A.1.a.i - Electricity Generation"]
["1.A.1.a.ii","Combined Heat and Power Generation (CHP)","1.A.1.a.ii - Combined Heat and Power Generation (CHP)"]
["1.A.1.a.iii","Heat Plants","1.A.1.a.iii - Heat Plants"]
["1.A.1.b","Petroleum Refining","1.A.1.b - Petroleum Refining"]
["1.A.1.c","Manufacture of Solid Fuels and Other Energy Industries","1.A.1.c - Manufacture of Solid Fuels and Other Energy Industries"]
["1.A.1.c.i","Manufacture of Solid Fuels","1.A.1.c.i - Manufacture of Solid Fuels"]
["1.A.1.c.ii","Other Energy Industries","1.A.1.c.ii - Other Energy Industries"]
["1.A.2","Manufacturing Industries and Construction","1.A.2 - Manufacturing Industries and Construction"]
["1.A.2.a","Iron and Steel","1.A.2.a - Iron and Steel"]
["1.A.2.b","Non-Ferrous Metals","1.A.2.b - Non-Ferrous Metals"]
["1.A.2.c","Chemicals","1.A.2.c - Chemicals"]
["1.A.2.d","Pulp, Paper and Print","1.A.2.d - Pulp, Paper and Print"]
["1.A.2.e","Food Processing, Beverages and Tobacco","1.A.2.e - Food Processing, Beverages and Tobacco"]
["1.A.2.f","Non-Metallic Minerals","1.A.2.f - Non-Metallic Minerals"]
["1.A.2.g","Transport Equipment","1.A.2.g - Transport Equipment"]
["1.A.2.h","Machinery","1.A.2.h - Machinery"]
["1.A.2.i","Mining (excluding fuels) and Quarrying","1.A.2.i - Mining (excluding fuels) and Quarrying"]
["1.A.2.j","Wood and wood products","1.A.2.j - Wood and wood products"]
["1.A.2.k","Construction","1.A.2.k - Construction"]
["1.A.2.l","Textile and Leather","1.A.2.l - Textile and Leather"]
["1.A.2.m","Non-specified Industry","1.A.2.m - Non-specified Industry"]
["1.A.3","Transport","1.A.3 - Transport"]
["1.A.3.a","Civil Aviation","1.A.3.a - Civil Aviation"]
["1.A.3.a.i","International Aviation (International Bunkers)","1.A.3.a.i - International Aviation (International Bunkers)"]
["1.A.3.a.ii","Domestic Aviation","1.A.3.a.ii - Domestic Aviation"]
["1.A.3.b","Road Transportation","1.A.3.b - Road Transportation"]
["1.A.3.b.i","Cars","1.A.3.b.i - Cars"]
["1.A.3.b.i.1","Passenger cars with 3-way catalysts","1.A.3.b.i.1 - Passenger cars with 3-way catalysts"]
["1.A.3.b.i.2","Passenger cars without 3-way catalysts","1.A.3.b.i.2 - Passenger cars without 3-way catalysts"]
["1.A.3.b.ii","Light-duty trucks","1.A.3.b.ii - Light-duty trucks"]
["1.A.3.b.ii.1","Light-duty trucks with 3-way catalysts","1.A.3.b.ii.1 - Light-duty trucks with 3-way catalysts"]
["1.A.3.b.ii.2","Light-duty trucks without 3-way catalysts","1.A.3.b.ii.2 - Light-duty trucks without 3-way catalysts"]
["1.A.3.b.iii","Heavy-duty trucks and buses","1.A.3.b.iii - Heavy-duty trucks and buses"]
["1.A.3.b.iv","Motorcycles","1.A.3.b.iv - Motorcycles"]
["1.A.3.b.v","Evaporative emissions from vehicles","1.A.3.b.v - Evaporative emissions from vehicles"]
["1.A.3.b.vi","Urea-based catalysts","1.A.3.b.vi - Urea-based catalysts"]
["1.A.3.c","Railways","1.A.3.c - Railways"]
["1.A.3.d","Water-borne Navigation","1.A.3.d - Water-borne Navigation"]
["1.A.3.d.i","International water-borne navigation (International bunkers)","1.A.3.d.i - International water-borne navigation (International bunkers)"]
["1.A.3.d.ii","Domestic Water-borne Navigation","1.A.3.d.ii - Domestic Water-borne Navigation"]
["1.A.3.e","Other Transportation","1.A.3.e - Other Transportation"]
["1.A.3.e.i","Pipeline Transport","1.A.3.e.i - Pipeline Transport"]
["1.A.3.e.ii","Off-road","1.A.3.e.ii - Off-road"]
["1.A.4","Other Sectors","1.A.4 - Other Sectors"]
["1.A.4.a","Commercial/Institutional","1.A.4.a - Commercial/Institutional"]
["1.A.4.b","Residential","1.A.4.b - Residential"]
["1.A.4.c","Agriculture/Forestry/Fishing/Fish Farms","1.A.4.c - Agriculture/Forestry/Fishing/Fish Farms"]
["1.A.4.c.i","Stationary","1.A.4.c.i - Stationary"]
["1.A.4.c.ii","Off-road Vehicles and Other Machinery","1.A.4.c.ii - Off-road Vehicles and Other Machinery"]
["1.A.4.c.iii","Fishing (mobile combustion)","1.A.4.c.iii - Fishing (mobile combustion)"]
["1.A.5","Non-Specified","1.A.5 - Non-Specified"]
["1.A.5.a","Stationary","1.A.5.a - Stationary"]
["1.A.5.b","Mobile","1.A.5.b - Mobile"]
["1.A.5.b.i","Mobile (aviation component)","1.A.5.b.i - Mobile (aviation component)"]
["1.A.5.b.ii","Mobile (water-borne component)","1.A.5.b.ii - Mobile (water-borne component)"]
["1.A.5.b.iii","Mobile (Other)","1.A.5.b.iii - Mobile (Other)"]
["1.A.5.c","Multilateral Operations","1.A.5.c - Multilateral Operations"]
["1.B","Fugitive emissions from fuels","1.B - Fugitive emissions from fuels"]
["1.B.1","Solid Fuels","1.B.1 - Solid Fuels"]
["1.B.1.a","Coal mining and handling","1.B.1.a - Coal mining and handling"]
["1.B.1.a.i","Underground mines","1.B.1.a.i - Underground mines"]
["1.B.1.a.i.1","Mining","1.B.1.a.i.1 - Mining"]
["1.B.1.a.i.2","Post-mining seam gas emissions","1.B.1.a.i.2 - Post-mining seam gas emissions"]
["1.B.1.a.i.3","Abandoned underground mines","1.B.1.a.i.3 - Abandoned underground mines"]
["1.B.1.a.i.4","Flaring of drained methane or conversion of methane to CO2","1.B.1.a.i.4 - Flaring of drained methane or conversion of methane to CO2"]
["1.B.1.a.ii","Surface mines","1.B.1.a.ii - Surface mines"]
["1.B.1.a.ii.1","Mining","1.B.1.a.ii.1 - Mining"]
["1.B.1.a.ii.2","Post-mining seam gas emissions","1.B.1.a.ii.2 - Post-mining seam gas emissions"]
["1.B.1.b","Uncontrolled combustion and burning coal dumps","1.B.1.b - Uncontrolled combustion and burning coal dumps"]
["1.B.1.c","Solid fuel transformation","1.B.1.c - Solid fuel transformation"]
["1.B.2","Oil and Natural Gas","1.B.2 - Oil and Natural Gas"]
["1.B.2.a","Oil","1.B.2.a - Oil"]
["1.B.2.a.i","Venting","1.B.2.a.i - Venting"]
["1.B.2.a.ii","Flaring","1.B.2.a.ii - Flaring"]
["1.B.2.a.iii","All Other","1.B.2.a.iii - All Other"]
["1.B.2.a.iii.1","Exploration","1.B.2.a.iii.1 - Exploration"]
["1.B.2.a.iii.2","Production and Upgrading","1.B.2.a.iii.2 - Production and Upgrading"]
["1.B.2.a.iii.3","Transport","1.B.2.a.iii.3 - Transport"]
["1.B.2.a.iii.4","Refining","1.B.2.a.iii.4 - Refining"]
["1.B.2.a.iii.5","Distribution of oil products","1.B.2.a.iii.5 - Distribution of oil products"]
["1.B.2.a.iii.6","Other","1.B.2.a.iii.6 - Other"]
["1.B.2.b","Natural Gas","1.B.2.b - Natural Gas"]
["1.B.2.b.i","Venting","1.B.2.b.i - Venting"]
["1.B.2.b.ii","Flaring","1.B.2.b.ii - Flaring"]
["1.B.2.b.iii","All Other","1.B.2.b.iii - All Other"]
["1.B.2.b.iii.1","Exploration","1.B.2.b.iii.1 - Exploration"]
["1.B.2.b.iii.2","Production","1.B.2.b.iii.2 - Production"]
["1.B.2.b.iii.3","Processing","1.B.2.b.iii.3 - Processing"]
["1.B.2.b.iii.4","Transmission and Storage","1.B.2.b.iii.4 - Transmission and Storage"]
["1.B.2.b.iii.5","Distribution","1.B.2.b.iii.5 - Distribution"]
["1.B.2.b.iii.6","Other","1.B.2.b.iii.6 - Other"]
["1.B.3","Other emissions from Energy Production","1.B.3 - Other emissions from Energy Production"]
["1.C","Carbon dioxide Transport and Storage","1.C - Carbon dioxide Transport and Storage"]
["1.C.1","Transport of CO2","1.C.1 - Transport of CO2"]
["1.C.1.a","Pipelines","1.C.1.a - Pipelines"]
["1.C.1.b","Ships","1.C.1.b - Ships"]
["1.C.1.c","Other (please specify)","1.C.1.c - Other (please specify)"]
["1.C.2","Injection and Storage","1.C.2 - Injection and Storage"]
["1.C.2.a","Injection","1.C.2.a - Injection"]
["1.C.2.b","Storage","1.C.2.b - Storage"]
["1.C.3","Other","1.C.3 - Other"]
["2","Industrial Processes and Product Use","2 - Industrial Processes and Product Use"]
["2.A","Mineral Industry","2.A - Mineral Industry"]
["2.A.1","Cement production","2.A.1 - Cement production"]
["2.A.2","Lime production","2.A.2 - Lime production"]
["2.A.3","Glass Production","2.A.3 - Glass Production"]
["2.A.4","Other Process Uses of Carbonates","2.A.4 - Other Process Uses of Carbonates"]
["2.A.4.a","Ceramics","2.A.4.a - Ceramics"]
["2.A.4.b","Other Uses of Soda Ash","2.A.4.b - Other Uses of Soda Ash"]
["2.A.4.c","Non Metallurgical Magnesia Production","2.A.4.c - Non Metallurgical Magnesia Production"]
["2.A.4.d","Other (please specify)","2.A.4.d - Other (please specify)"]
["2.A.5","Other (please specify)","2.A.5 - Other (please specify)"]
["2.B","Chemical Industry","2.B - Chemical Industry"]
["2.B.1","Ammonia Production","2.B.1 - Ammonia Production"]
["2.B.2","Nitric Acid Production","2.B.2 - Nitric Acid Production"]
["2.B.3","Adipic Acid Production","2.B.3 - Adipic Acid Production"]
["2.B.4","Caprolactam, Glyoxal and Glyoxylic Acid Production","2.B.4 - Caprolactam, Glyoxal and Glyoxylic Acid Production"]
["2.B.5","Carbide Production","2.B.5 - Carbide Production"]
["2.B.6","Titanium Dioxide Production","2.B.6 - Titanium Dioxide Production"]
["2.B.7","Soda Ash Production","2.B.7 - Soda Ash Production"]
["2.B.8","Petrochemical and Carbon Black Production","2.B.8 - Petrochemical and Carbon Black Production"]
["2.B.8.a","Methanol","2.B.8.a - Methanol"]
["2.B.8.b","Ethylene","2.B.8.b - Ethylene"]
["2.B.8.c","Ethylene Dichloride and Vinyl Chloride Monomer","2.B.8.c - Ethylene Dichloride and Vinyl Chloride Monomer"]
["2.B.8.d","Ethylene Oxide","2.B.8.d - Ethylene Oxide"]
["2.B.8.e","Acrylonitrile","2.B.8.e - Acrylonitrile"]
["2.B.8.f","Carbon Black","2.B.8.f - Carbon Black"]
["2.B.9","Fluorochemical Production","2.B.9 - Fluorochemical Production"]
["2.B.9.a","By-product emissions","2.B.9.a - By-product emissions"]
["2.B.9.b","Fugitive Emissions","2.B.9.b - Fugitive Emissions"]
["2.B.10","Other (Please specify)","2.B.10 - Other (Please specify)"]
["2.C","Metal Industry","2.C - Metal Industry"]
["2.C.1","Iron and Steel Production","2.C.1 - Iron and Steel Production"]
["2.C.2","Ferroalloys Production","2.C.2 - Ferroalloys Production"]
["2.C.3","Aluminium production","2.C.3 - Aluminium production"]
["2.C.4","Magnesium production","2.C.4 - Magnesium production"]
["2.C.5","Lead Production","2.C.5 - Lead Production"]
["2.C.6","Zinc Production","2.C.6 - Zinc Production"]
["2.C.7","Other (please specify)","2.C.7 - Other (please specify)"]
["2.D","Non-Energy Products from Fuels and Solvent Use","2.D - Non-Energy Products from Fuels and Solvent Use"]
["2.D.1","Lubricant Use","2.D.1 - Lubricant Use"]
["2.D.2","Paraffin Wax Use","2.D.2 - Paraffin Wax Use"]
["2.D.3","Solvent Use","2.D.3 - Solvent Use"]
["2.D.4","Other (please specify)","2.D.4 - Other (please specify)"]
["2.E","Electronics Industry","2.E - Electronics Industry"]
["2.E.1","Integrated Circuit or Semiconductor","2.E.1 - Integrated Circuit or Semiconductor"]
["2.E.2","TFT Flat Panel Display","2.E.2 - TFT Flat Panel Display"]
["2.E.3","Photovoltaics","2.E.3 - Photovoltaics"]
["2.E.4","Heat Transfer Fluid","2.E.4 - Heat Transfer Fluid"]
["2.E.5","Other (please specify)","2.E.5 - Other (please specify)"]
["2.F","Product Uses as Substitutes for Ozone Depleting Substances","2.F - Product Uses as Substitutes for Ozone Depleting Substances"]
["2.F.1","Refrigeration and Air Conditioning","2.F.1 - Refrigeration and Air Conditioning"]
["2.F.1.a","Refrigeration and Stationary Air Conditioning","2.F.1.a - Refrigeration and Stationary Air Conditioning"]
["2.F.1.b","Mobile Air Conditioning","2.F.1.b - Mobile Air Conditioning"]
["2.F.2","Foam Blowing Agents","2.F.2 - Foam Blowing Agents"]
["2.F.3","Fire Protection","2.F.3 - Fire Protection"]
["2.F.4","Aerosols","2.F.4 - Aerosols"]
["2.F.5","Solvents","2.F.5 - Solvents"]
["2.F.6","Other Applications (please specify)","2.F.6 - Other Applications (please specify)"]
["2.G","Other Product Manufacture and Use","2.G - Other Product Manufacture and Use"]
["2.G.1","Electrical Equipment","2.G.1 - Electrical Equipment"]
["2.G.1.a","Manufacture of Electrical Equipment","2.G.1.a - Manufacture of Electrical Equipment"]
["2.G.1.b","Use of Electrical Equipment","2.G.1.b - Use of Electrical Equipment"]
["2.G.1.c","Disposal of Electrical Equipment","2.G.1.c - Disposal of Electrical Equipment"]
["2.G.2","SF6 and PFCs from Other Product Uses","2.G.2 - SF6 and PFCs from Other Product Uses"]
["2.G.2.a","Military Applications","2.G.2.a - Military Applications"]
["2.G.2.b","Accelerators","2.G.2.b - Accelerators"]
["2.G.2.c","Other (please specify)","2.G.2.c - Other (please specify)"]
["2.G.3","N2O from Product Uses","2.G.3 - N2O from Product Uses"]
["2.G.3.a","Medical Applications","2.G.3.a - Medical Applications"]
["2.G.3.b","Propellant for pressure and aerosol products","2.G.3.b - Propellant for pressure and aerosol products"]
["2.G.3.c","Other (Please specify)","2.G.3.c - Other (Please specify)"]
["2.G.4","Other (Please specify)","2.G.4 - Other (Please specify)"]
["2.H","Other","2.H - Other"]
["2.H.1","Pulp and Paper Industry","2.H.1 - Pulp and Paper Industry"]
["2.H.2","Food and Beverages Industry","2.H.2 - Food and Beverages Industry"]
["2.H.3","Other (please specify)","2.H.3 - Other (please specify)"]
["3","Agriculture, Forestry, and Other Land Use","3 - Agriculture, Forestry, and Other Land Use"]
["3.A","Livestock","3.A - Livestock"]
["3.A.1","Enteric Fermentation","3.A.1 - Enteric Fermentation"]
["3.A.1.a","Cattle","3.A.1.a - Cattle"]
["3.A.1.a.i","Dairy Cows","3.A.1.a.i - Dairy Cows"]
["3.A.1.a.ii","Other Cattle","3.A.1.a.ii - Other Cattle"]
["3.A.1.b","Buffalo","3.A.1.b - Buffalo"]
["3.A.1.c","Sheep","3.A.1.c - Sheep"]
["3.A.1.d","Goats","3.A.1.d - Goats"]
["3.A.1.e","Camels","3.A.1.e - Camels"]
["3.A.1.f","Horses","3.A.1.f - Horses"]
["3.A.1.g","Mules and Asses","3.A.1.g - Mules and Asses"]
["3.A.1.h","Swine","3.A.1.h - Swine"]
["3.A.1.j","Other (please specify)","3.A.1.j - Other (please specify)"]
["3.A.2","Manure Management","3.A.2 - Manure Management"]
["3.A.2.a","Cattle","3.A.2.a - Cattle"]
["3.A.2.a.i","Dairy cows","3.A.2.a.i - Dairy cows"]
["3.A.2.a.ii","Other cattle","3.A.2.a.ii - Other cattle"]
["3.A.2.b","Buffalo","3.A.2.b - Buffalo"]
["3.A.2.c","Sheep","3.A.2.c - Sheep"]
["3.A.2.d","Goats","3.A.2.d - Goats"]
["3.A.2.e","Camels","3.A.2.e - Camels"]
["3.A.2.f","Horses","3.A.2.f - Horses"]
["3.A.2.g","Mules and Asses","3.A.2.g - Mules and Asses"]
["3.A.2.h","Swine","3.A.2.h - Swine"]
["3.A.2.i","Poultry","3.A.2.i - Poultry"]
["3.A.2.j","Other (please specify)","3.A.2.j - Other (please specify)"]
["3.B","Land","3.B - Land"]
["3.B.1","Forest land","3.B.1 - Forest land"]
["3.B.1.a","Forest land Remaining Forest land","3.B.1.a - Forest land Remaining Forest land"]
["3.B.1.b","Land Converted to Forest land","3.B.1.b - Land Converted to Forest land"]
["3.B.1.b.i","Cropland converted to Forest Land","3.B.1.b.i - Cropland converted to Forest Land"]
["3.B.1.b.ii","Grassland converted to Forest Land","3.B.1.b.ii - Grassland converted to Forest Land"]
["3.B.1.b.iii","Wetlands converted to Forest Land","3.B.1.b.iii - Wetlands converted to Forest Land"]
["3.B.1.b.iv","Settlements converted to Forest Land","3.B.1.b.iv - Settlements converted to Forest Land"]
["3.B.1.b.v","Other Land converted to Forest Land","3.B.1.b.v - Other Land converted to Forest Land"]
["3.B.2","Cropland","3.B.2 - Cropland"]
["3.B.2.a","Cropland Remaining Cropland","3.B.2.a - Cropland Remaining Cropland"]
["3.B.2.b","Land Converted to Cropland","3.B.2.b - Land Converted to Cropland"]
["3.B.2.b.i","Forest Land converted to Cropland","3.B.2.b.i - Forest Land converted to Cropland"]
["3.B.2.b.ii","Grassland converted to Cropland","3.B.2.b.ii - Grassland converted to Cropland"]
["3.B.2.b.iii","Wetlands converted to Cropland","3.B.2.b.iii - Wetlands converted to Cropland"]
["3.B.2.b.iv","Settlements converted to Cropland","3.B.2.b.iv - Settlements converted to Cropland"]
["3.B.2.b.v","Other Land converted to Cropland","3.B.2.b.v - Other Land converted to Cropland"]
["3.B.3","Grassland","3.B.3 - Grassland"]
["3.B.3.a","Grassland Remaining Grassland","3.B.3.a - Grassland Remaining Grassland"]
["3.B.3.b","Land Converted to Grassland","3.B.3.b - Land Converted to Grassland"]
["3.B.3.b.i","Forest Land converted to Grassland","3.B.3.b.i - Forest Land converted to Grassland"]
["3.B.3.b.ii","Cropland converted to Grassland","3.B.3.b.ii - Cropland converted to Grassland"]
["3.B.3.b.iii","Wetlands converted to Grassland","3.B.3.b.iii - Wetlands converted to Grassland"]
["3.B.3.b.iv","Settlements converted to Grassland","3.B.3.b.iv - Settlements converted to Grassland"]
["3.B.3.b.v","Other Land converted to Grassland","3.B.3.b.v - Other Land converted to Grassland"]
["3.B.4","Wetlands","3.B.4 - Wetlands"]
["3.B.4.a","Wetlands Remaining Wetlands","3.B.4.a - Wetlands Remaining Wetlands"]
["3.B.4.a.i","Peat Extraction remaining Peat Extraction","3.B.4.a.i - Peat Extraction remaining Peat Extraction"]
["3.B.4.a.ii","Flooded land remaining flooded land","3.B.4.a.ii - Flooded land remaining flooded land"]
["3.B.4.a.iii","Other Wetlands Remaining Other Wetlands","3.B.4.a.iii - Other Wetlands Remaining Other Wetlands"]
["3.B.4.b","Land Converted to Wetlands","3.B.4.b - Land Converted to Wetlands"]
["3.B.4.b.i","Land converted for peat extraction","3.B.4.b.i - Land converted for peat extraction"]
["3.B.4.b.ii","Land converted to flooded land","3.B.4.b.ii - Land converted to flooded land"]
["3.B.4.b.iii","Land converted to other wetlands","3.B.4.b.iii - Land converted to other wetlands"]
["3.B.5","Settlements","3.B.5 - Settlements"]
["3.B.5.a","Settlements Remaining Settlements","3.B.5.a - Settlements Remaining Settlements"]
["3.B.5.b","Land Converted to Settlements","3.B.5.b - Land Converted to Settlements"]
["3.B.5.b.i","Forest Land converted to Settlements","3.B.5.b.i - Forest Land converted to Settlements"]
["3.B.5.b.ii","Cropland converted to Settlements","3.B.5.b.ii - Cropland converted to Settlements"]
["3.B.5.b.iii","Grassland converted to Settlements","3.B.5.b.iii - Grassland converted to Settlements"]
["3.B.5.b.iv","Wetlands converted to Settlements","3.B.5.b.iv - Wetlands converted to Settlements"]
["3.B.5.b.v","Other Land converted to Settlements","3.B.5.b.v - Other Land converted to Settlements"]
["3.B.6","Other Land","3.B.6 - Other Land"]
["3.B.6.a","Other land Remaining Other land","3.B.6.a - Other land Remaining Other land"]
["3.B.6.b","Land Converted to Other land","3.B.6.b - Land Converted to Other land"]
["3.B.6.b.i","Forest Land converted to Other Land","3.B.6.b.i - Forest Land converted to Other Land"]
["3.B.6.b.ii","Cropland converted to Other Land","3.B.6.b.ii - Cropland converted to Other Land"]
["3.B.6.b.iii","Grassland converted to Other Land","3.B.6.b.iii - Grassland converted to Other Land"]
["3.B.6.b.iv","Wetlands converted to Other Land","3.B.6.b.iv - Wetlands converted to Other Land"]
["3.B.6.b.v","Settlements converted to Other Land","3.B.6.b.v - Settlements converted to Other Land"]
["3.C","Aggregate sources and non-CO2 emissions sources on land","3.C - Aggregate sources and non-CO2 emissions sources on land"]
["3.C.1","Burning","3.C.1 - Burning"]
["3.C.1.a","Burning in Forest Land","3.C.1.a - Burning in Forest Land"]
["3.C.1.b","Burning in Cropland","3.C.1.b - Burning in Cropland"]
["3.C.1.c","Burning in Grassland","3.C.1.c - Burning in Grassland"]
["3.C.1.d","Burning in All Other Land","3.C.1.d - Burning in All Other Land"]
["3.C.2","Liming","3.C.2 - Liming"]
["3.C.3","Urea application","3.C.3 - Urea application"]
["3.C.4","Direct N2O Emissions from managed soils","3.C.4 - Direct N2O Emissions from managed soils"]
["3.C.5","Indirect N2O Emissions from managed soils","3.C.5 - Indirect N2O Emissions from managed soils"]
["3.C.6","Indirect N2O Emissions from manure management","3.C.6 - Indirect N2O Emissions from manure management"]
["3.C.7","Rice cultivations","3.C.7 - Rice cultivations"]
["3.C.8","CH₄ from Drained Organic Soils","3.C.8 - CH₄ from Drained Organic Soils"]
["3.C.9","CH₄ from Drainage Ditches on Organic Soils","3.C.9 - CH₄ from Drainage Ditches on Organic Soils"]
["3.C.10","CH₄ from Rewetting of Organic Soils","3.C.10 - CH₄ from Rewetting of Organic Soils"]
["3.C.11","CH₄ Emissions from Rewetting of Mangroves and Tidal Marshes","3.C.11 - CH₄ Emissions from Rewetting of Mangroves and Tidal Marshes"]
["3.C.12","N₂O Emissions from Aquaculture","3.C.12 - N₂O Emissions from Aquaculture"]
["3.C.13","CH₄ Emissions from Rewetted and Created Wetlands on Inland Wetland Mineral Soils","3.C.13 - CH₄ Emissions from Rewetted and Created Wetlands on Inland Wetland Mineral Soils"]
["3.C.14","Other (please specify)","3.C.14 - Other (please specify)"]
["3.D","Other","3.D - Other"]
["3.D.1","Harvested Wood Products","3.D.1 - Harvested Wood Products"]
["3.D.2","Other (please specify)","3.D.2 - Other (please specify)"]
["4","Waste","4 - Waste"]
["4.A","Solid Waste Disposal","4.A - Solid Waste Disposal"]
["4.A.1","Managed Waste Disposal Sites","4.A.1 - Managed Waste Disposal Sites"]
["4.A.2","Unmanaged Waste Disposal Sites","4.A.2 - Unmanaged Waste Disposal Sites"]
["4.A.3","Uncategorised Waste Disposal Sites","4.A.3 - Uncategorised Waste Disposal Sites"]
["4.B","Biological Treatment of Solid Waste","4.B - Biological Treatment of Solid Waste"]
["4.C","Incineration and Open Burning of Waste","4.C - Incineration and Open Burning of Waste"]
["4.C.1","Waste Incineration","4.C.1 - Waste Incineration"]
["4.C.2","Open Burning of Waste","4.C.2 - Open Burning of Waste"]
["4.D","Wastewater Treatment and Discharge","4.D - Wastewater Treatment and Discharge"]
["4.D.1","Domestic Wastewaster Treatment and Discharge","4.D.1 - Domestic Wastewaster Treatment and Discharge"]
["4.D.2","Industrial Wastewater Treatment and Discharge","4.D.2 - Industrial Wastewater Treatment and Discharge"]
["4.E","Other (please specify)","4.E - Other (please specify)"]
["5","Other","5 - Other"]
["5.A","Indirect N2O emissions from the atmospheric deposition of nitrogen in NOx and NH3","5.A - Indirect N2O emissions from the atmospheric deposition of nitrogen in NOx and NH3"]
["5.B","Other (please specify)","5.B - Other (please specify)"]

{"sheet":"Fuels 1996","index":5,"n_rows":59,"n_cols":1,"rows_kept":59,"cut":false,"hidden":false,"merged":[]}
["Fuel 1996 (ID)"]
["Crude Oil (201)"]
["Orimulsion (319)"]
["Natural Gas Liquids (302)"]
["Motor Gasoline (208)"]
["Aviation Gasoline (209)"]
["Jet Gasoline (207)"]
["Jet Kerosene (206)"]
["Other Kerosene (320)"]
["Shale Oil (211)"]
["Diesel Oil (205)"]
["Gas Oil (204)"]
["Residual Fuel Oil (203)"]
["Liquefied Petroleum Gas (LPG) (303)"]
["Ethane (321)"]
["Naphtha (210)"]
["Bitumen (222)"]
["Lubricants (219)"]
["Petroleum Coke (110)"]
["Refinery Feedstock (217)"]
["Refinery Gas (308)"]
["Paraffin Waxes (221)"]
["White Spirit/Industrial spirits (SBP) (220)"]
["Other Oils (322)"]
["Peat (113)"]
["Lignite/Brown Coal (325)"]
["Other Sub-Bituminous Coal (103)"]
["Anthracite (323)"]
["Coking Coal (101)"]
["Other Bituminous Coal (318)"]
["Oil Shale (120)"]
["Coke Oven Coke (326)"]
["Other cokes from solid fuels (331)"]
["Coal-derived tars and oils (330)"]
["Undifferentiated Coal (S01)"]
["Patent Fuel (104)"]
["Brown Coal Briquettes (106)"]
["Coke Oven Gas (304)"]
["Blast Furnace Gas (305)"]
["Gas Works Gas (311)"]
["Other gases and mixtures from coal-derived carbon (306)"]
["Natural Gas (301)"]
["Municipal Solid Waste (Garbage) (114)"]
["Industrial Waste (115)"]
["Fuel mixtures (fossil and biomass) (333)"]
["Waste Gas (especially chemical industry) (307)"]
["Other Wastes (specify nature) (334)"]
["Wood/Wood Waste (111)"]
["Agricultural Waste (corncobs, straw, etc...) (117)"]
["Charcoal (112)"]
["Other solid biomass (329)"]
["Bio-Alcohol (223)"]
["Sulphur Lies (Black Liquor) (215)"]
["Sewage Sludge (118)"]
["Other liquid biomass (335)"]
["Landfill Gas (327)"]
["Sludge Gas (Sewage Gas) (328)"]
["Other Biogas (309)"]
["(Unspecified) (000)"]

{"sheet":"Fuels 2006","index":6,"n_rows":60,"n_cols":1,"rows_kept":60,"cut":false,"hidden":false,"merged":[]}
["Fuel 2006 (ID)"]
["Crude Oil (001)"]
["Orimulsion (002)"]
["Natural Gas Liquids\r\n(NGLs) (003)"]
["Motor Gasoline (004)"]
["Aviation Gasoline (005)"]
["Jet Gasoline (006)"]
["Jet Kerosene (007)"]
["Other Kerosene (008)"]
["Shale Oil (009)"]
["Gas Oil (010)"]
["Diesel Oil (056)"]
["Residual Fuel Oil (011)"]
["Liquefied Petroleum Gases (012)"]
["Ethane (013)"]
["Naphtha (014)"]
["Bitumen (015)"]
["Lubricants (016)"]
["Petroleum Coke (017)"]
["Refinery Feedstocks (018)"]
["Refinery Gas (019)"]
["Waxes (020)"]
["White Spirit & SBP (021)"]
["Other Petroleum Products (022)"]
["Anthracite (023)"]
["Coking Coal (024)"]
["Other Bituminous Coal (025)"]
["Sub-Bituminous Coal (026)"]
["Lignite (027)"]
["Oil Shale and Tar Sands (028)"]
["Brown Coal Briquettes (029)"]
["Patent Fuel (030)"]
["Coke Oven Coke and Lignite Coke (031)"]
["Gas Coke (032)"]
["Coal Tar (033)"]
["Gas Works Gas (034)"]
["Coke Oven Gas (035)"]
["Blast Furnace Gas (036)"]
["Oxygen Steel Furnace Gas (037)"]
["Undifferentiated Coal (S01)"]
["Natural Gas (038)"]
["Municipal Wastes (non-biomass fraction) (039)"]
["Industrial Wastes (040)"]
["Waste Oils (041)"]
["Peat (042)"]
["Wood/Wood Waste (043)"]
["Sulphite Lyes (Black Liquor) (044)"]
["Other Primary Solid Biomass (045)"]
["Charcoal (046)"]
["Biogasoline (047)"]
["Biodiesels (048)"]
["Bio-Alcohol (054)"]
["Sewage Sludge (058)"]
["Other Liquid Biofuels (049)"]
["Landfill Gas (050)"]
["Sludge Gas (051)"]
["Other Biogas (052)"]
["Municipal Wastes (biomass fraction) (053)"]
["Fuel mixtures (fossil and biomass) (055)"]
["(Unspecified) (000)"]

{"sheet":"C pools","index":7,"n_rows":9,"n_cols":1,"rows_kept":9,"cut":false,"hidden":false,"merged":[]}
["C pool (ID)"]
["Above-ground biomass [AGB] (AGB)"]
["Below-ground biomass [BGB] (BGB)"]
["Litter [L] (LIT)"]
["Dead wood [DW] (DWD)"]
["Soil organic matter - mineral soils [SOM mineral] (OMM)"]
["Soil organic matter - organic soils [SOM organic] (OMO)"]
["Harvested wood products [HWP] (HWP)"]
["Classified otherwise (OTH)"]

{"sheet":"Units","index":8,"n_rows":431,"n_cols":3,"rows_kept":431,"cut":false,"hidden":false,"merged":[]}
["Unit Name","Min(Unit ID)","Unit Name (ID)"]
["",361,{"$f":"CONCATENATE(A2, \" (\", B2, \")\")","v":" (361)"}]
["%",201,{"$f":"CONCATENATE(A3, \" (\", B3, \")\")","v":"% (201)"}]
["% (by weight)",193,"% (by weight) (193)"]
["% DOC by dry weight",4265,"% DOC by dry weight (4265)"]
["% DOC_F by dry weight",4267,"% DOC_F by dry weight (4267)"]
["% g CH4/g-burning object",4386,"% g CH4/g-burning object (4386)"]
["% g N2O-N/g-N",4385,"% g N2O-N/g-N (4385)"]
["% of fertilized N",4322,"% of fertilized N (4322)"]
["% of installed capacity",752,"% of installed capacity (752)"]
["% of Manure Production per Animal Waste Management System",287,"% of Manure Production per Animal Waste Management System (287)"]
["% of methane formed",4465,"% of methane formed (4465)"]
["% of N removed",4403,"% of N removed (4403)"]
["% of sludge (dry matter)",206,"% of sludge (dry matter) (206)"]
["% of the original HFC charge/year",613,"% of the original HFC charge/year (613)"]
["% of total quantity of fluorinated compounds produced",480,"% of total quantity of fluorinated compounds produced (480)"]
["% of total quantity of SF6 produced",339,"% of total quantity of SF6 produced (339)"]
["% of waste (dry matter)",207,"% of waste (dry matter) (207)"]
["% of waste (wet)",205,"% of waste (wet) (205)"]
["% of wet weight",4234,"% of wet weight (4234)"]
["(kg PFC/tAl)/(AE-Minutes/cellday)",225,"(kg PFC/tAl)/(AE-Minutes/cellday) (225)"]
["(kg PFC/tAl)/(mV/day)",226,"(kg PFC/tAl)/(mV/day) (226)"]
["/year",4361,"/year (4361)"]
["1/year",272,"1/year (272)"]
["1/year ",2770,"1/year  (2770)"]
["1/yr",4458,"1/yr (4458)"]
["dimensionless",354,"dimensionless (354)"]
["Dimensionless fraction",4258,"Dimensionless fraction (4258)"]
["dimensionless: fraction of DOC that degrades.",4260,"dimensionless: fraction of DOC that degrades. (4260)"]
["fraction",192,"fraction (192)"]
["Fraction of SF6/year",227,"Fraction of SF6/year (227)"]
["fraction [amount of gas emitted per amount of gas consumed]",618,"fraction [amount of gas emitted per amount of gas consumed] (618)"]
["fraction [amount of gas emitted per amount of gas purchased to fill windows asse",639,"fraction [amount of gas emitted per amount of gas purchased to fill windows asse (639)"]
["fraction [amount of gas emitted per capacity of existing windows]",640,"fraction [amount of gas emitted per capacity of existing windows] (640)"]
["fraction [amount of gas emitted per nameplate capacity of all equipment installe",620,"fraction [amount of gas emitted per nameplate capacity of all equipment installe (620)"]
["fraction [amount of gas emitted per year per nameplate capacity of all equipment",619,"fraction [amount of gas emitted per year per nameplate capacity of all equipment (619)"]
["fraction -- Gg C/ Gg bulk waste",2269,"fraction -- Gg C/ Gg bulk waste (2269)"]
["ft3/capita/day",2772,"ft3/capita/day (2772)"]
["g BOD/person/day",4400,"g BOD/person/day (4400)"]
["g CF4/m^2 of glass processed",563,"g CF4/m^2 of glass processed (563)"]
["g CF4/m^2 of substrate processed",566,"g CF4/m^2 of substrate processed (566)"]
["g CH4 /capita /day",4391,"g CH4 /capita /day (4391)"]
["g CH4/capita/year",4396,"g CH4/capita/year (4396)"]
["g CH4/kg Production",217,"g CH4/kg Production (217)"]
["g CH4/kg waste treated",714,"g CH4/kg waste treated (714)"]
["g CH4/litre",4395,"g CH4/litre (4395)"]
["g CH4/m3d",4468,"g CH4/m3d (4468)"]
["g CH4/t wet weight",722,"g CH4/t wet weight (722)"]
["g CH4/tonne coke produced",501,"g CH4/tonne coke produced (501)"]
["g CO2 eq /m^2/hour",4466,"g CO2 eq /m^2/hour (4466)"]
["g COD/l",2773,"g COD/l (2773)"]
["g N2O /capita /day",4392,"g N2O /capita /day (4392)"]
["g N2O /PE /yr-1",4387,"g N2O /PE /yr-1 (4387)"]
["g N2O /tonne waste",202,"g N2O /tonne waste (202)"]
["g N2O /tonne wet waste",4397,"g N2O /tonne wet waste (4397)"]
["g N2O-N /g TKNinfluent",4388,"g N2O-N /g TKNinfluent (4388)"]
["g N2O/kg waste treated",718,"g N2O/kg waste treated (718)"]
["g N2O/person/year",712,"g N2O/person/year (712)"]
["g N2O/t MSW incinerated on a dry weight basis",750,"g N2O/t MSW incinerated on a dry weight basis (750)"]
["g N2O/t MSW incinerated on a wet weight basis",731,"g N2O/t MSW incinerated on a wet weight basis (731)"]
["g NF3/m^2 of glass processed",564,"g NF3/m^2 of glass processed (564)"]
["g SF6/m^2 of glass processed",565,"g SF6/m^2 of glass processed (565)"]
["g/animal",173,"g/animal (173)"]
["g/bus",141,"g/bus (141)"]
["g/capita",4394,"g/capita (4394)"]
["g/capita/d",4393,"g/capita/d (4393)"]
["g/car",139,{"$f":"CONCATENATE(A67, \" (\", B67, \")\")","v":"g/car (139)"}]
["g/g",4350,"g/g (4350)"]
["g/GJ",107,"g/GJ (107)"]
["g/ha",182,"g/ha (182)"]
["g/hl",127,"g/hl (127)"]
["g/inhabitant equiva.",174,"g/inhabitant equiva. (174)"]
["g/kg dry matter combusted",360,"g/kg dry matter combusted (360)"]
["g/kg fuel",322,"g/kg fuel (322)"]
["g/kg Oil Throughput",336,"g/kg Oil Throughput (336)"]
["g/kgl",324,"g/kgl (324)"]
["g/km",321,"g/km (321)"]
["g/l",204,"g/l (204)"]
["g/LTO",118,"g/LTO (118)"]
["g/m2",158,"g/m2 (158)"]
["g/m2/day",4382,"g/m2/day (4382)"]
["g/m3 gas",123,"g/m3 gas (123)"]
["g/m3 water",175,"g/m3 water (175)"]
["g/Mg 100 % H2SO4",111,"g/Mg 100 % H2SO4 (111)"]
["g/Mg 100 % HNO3",120,"g/Mg 100 % HNO3 (120)"]
["g/Mg acrylonitrile",170,"g/Mg acrylonitrile (170)"]
["g/Mg asphalt",150,"g/Mg asphalt (150)"]
["g/Mg black liquor",103,"g/Mg black liquor (103)"]
["g/Mg bread made",126,"g/Mg bread made (126)"]
["g/Mg coal carbonized",109,"g/Mg coal carbonized (109)"]
["g/Mg coal produced",172,"g/Mg coal produced (172)"]
["g/Mg coating product",157,"g/Mg coating product (157)"]
["g/Mg dichloro+vinylc",164,"g/Mg dichloro+vinylc (164)"]
["g/Mg dried pulp",119,"g/Mg dried pulp (119)"]
["g/Mg dried unbl.pulp",104,"g/Mg dried unbl.pulp (104)"]
["g/Mg dried unbleached pulp",270,"g/Mg dried unbleached pulp (270)"]
["g/Mg ethylbenzene",169,"g/Mg ethylbenzene (169)"]
["g/Mg ethylene prod.",163,"g/Mg ethylene prod. (163)"]
["g/Mg fertiliz. as N",180,"g/Mg fertiliz. as N (180)"]
["g/Mg fresh feed",112,"g/Mg fresh feed (112)"]
["g/Mg fresh matter",4236,"g/Mg fresh matter (4236)"]
["g/Mg fuel",137,"g/Mg fuel (137)"]
["g/Mg gasoline",138,"g/Mg gasoline (138)"]
["g/Mg glass",106,"g/Mg glass (106)"]
["g/Mg of aluminium",184,"g/Mg of aluminium (184)"]
["g/Mg of glass",116,"g/Mg of glass (116)"]
["g/Mg of lime",121,"g/Mg of lime (121)"]
["g/Mg of paint",142,"g/Mg of paint (142)"]
["g/Mg of paper",122,"g/Mg of paper (122)"]
["g/Mg of product",105,"g/Mg of product (105)"]
["g/Mg oil",124,"g/Mg oil (124)"]
["g/Mg oil throughput",171,"g/Mg oil throughput (171)"]
["g/Mg pig iron",183,"g/Mg pig iron (183)"]
["g/Mg polyethylene",125,"g/Mg polyethylene (125)"]
["g/Mg polypropylene",166,"g/Mg polypropylene (166)"]
["g/Mg polystyrene",168,"g/Mg polystyrene (168)"]
["g/Mg polyviylchlor.",165,"g/Mg polyviylchlor. (165)"]
["g/Mg product",115,"g/Mg product (115)"]
["g/Mg propylene capa.",160,"g/Mg propylene capa. (160)"]
["g/Mg propylene prod.",161,"g/Mg propylene prod. (161)"]
["g/Mg propylene produced",271,"g/Mg propylene produced (271)"]
["g/Mg pulp",102,"g/Mg pulp (102)"]
["g/Mg refinery feed",113,"g/Mg refinery feed (113)"]
["g/Mg residue",181,"g/Mg residue (181)"]
["g/Mg S produced",108,"g/Mg S produced (108)"]
["g/Mg shingle",128,"g/Mg shingle (128)"]
["g/Mg solvent",159,"g/Mg solvent (159)"]
["g/Mg steel",110,"g/Mg steel (110)"]
["g/Mg styrene",167,"g/Mg styrene (167)"]
["g/Mg vaccum feed",114,"g/Mg vaccum feed (114)"]
["g/Mg waste",117,{"$f":"CONCATENATE(A131, \" (\", B131, \")\")","v":"g/Mg waste (117)"}]
["g/MJ",323,"g/MJ (323)"]
["g/m^3 /day",4461,"g/m^3 /day (4461)"]
["g/person as NH3",179,"g/person as NH3 (179)"]
["g/person/day",693,"g/person/day (693)"]
["g/ton coke",100,"g/ton coke (100)"]
["g/ton MSW wet weight",730,"g/ton MSW wet weight (730)"]
["g/ton waste",4356,"g/ton waste (4356)"]
["g/tonnes steel produced",341,"g/tonnes steel produced (341)"]
["g/truck",140,"g/truck (140)"]
["gallons per 1000lb LWK",2774,"gallons per 1000lb LWK (2774)"]
["Gg/Gg",363,"Gg/Gg (363)"]
["Gg/m3",362,"Gg/m3 (362)"]
["GJ feedstock input/tonne of methanol produced",432,"GJ feedstock input/tonne of methanol produced (432)"]
["GJ[NCV]/tonne NH3",406,"GJ[NCV]/tonne NH3 (406)"]
["kcal/kg",4359,"kcal/kg (4359)"]
["kg acetonitrile/tonne acrylonitrile",470,"kg acetonitrile/tonne acrylonitrile (470)"]
["kg C/ton dumped waste",4344,"kg C/ton dumped waste (4344)"]
["kg C2F6 /tonne Al",543,"kg C2F6 /tonne Al (543)"]
["kg C2F6/kg c-C4F8",579,"kg C2F6/kg c-C4F8 (579)"]
["kg C2F6/kg C4F6",580,"kg C2F6/kg C4F6 (580)"]
["kg C2F6/kg C5F8",581,"kg C2F6/kg C5F8 (581)"]
["kg C2F6/kg CHF3",602,"kg C2F6/kg CHF3 (602)"]
["kg C2F6/m^2 of silicon processed",558,"kg C2F6/m^2 of silicon processed (558)"]
["kg C2F6/tonne Al",542,"kg C2F6/tonne Al (542)"]
["kg C3F8/kg C4F8O",582,"kg C3F8/kg C4F8O (582)"]
["kg C3F8/m^2 of silicon processed",560,"kg C3F8/m^2 of silicon processed (560)"]
["kg C6F14/m^2 of silicon consumed",568,"kg C6F14/m^2 of silicon consumed (568)"]
["kg CF4 /tonne Al",223,"kg CF4 /tonne Al (223)"]
["kg CF4/kg c-C4F8",571,"kg CF4/kg c-C4F8 (571)"]
["kg CF4/kg C2F6",342,"kg CF4/kg C2F6 (342)"]
["kg CF4/kg C3F8",343,"kg CF4/kg C3F8 (343)"]
["kg CF4/kg C4F6",574,"kg CF4/kg C4F6 (574)"]
["kg CF4/kg C4F8O",576,"kg CF4/kg C4F8O (576)"]
["kg CF4/kg C5F8",575,"kg CF4/kg C5F8 (575)"]
["kg CF4/kg CH2F2",570,"kg CF4/kg CH2F2 (570)"]
["kg CF4/kg CHF3",569,"kg CF4/kg CHF3 (569)"]
["kg CF4/kg COF2",578,"kg CF4/kg COF2 (578)"]
["kg CF4/kg F2",577,"kg CF4/kg F2 (577)"]
["kg CF4/kg NF3",572,"kg CF4/kg NF3 (572)"]
["kg CF4/m^2 of silicon processed",557,"kg CF4/m^2 of silicon processed (557)"]
["kg CH4 /d",4390,"kg CH4 /d (4390)"]
["kg CH4 /kg CODinfluent",4389,"kg CH4 /kg CODinfluent (4389)"]
["kg CH4-C / t wet waste",4324,"kg CH4-C / t wet waste (4324)"]
["kg CH4/ha",4241,"kg CH4/ha (4241)"]
["kg CH4/ha/day",1141,"kg CH4/ha/day (1141)"]
["kg CH4/head/yr",1166,"kg CH4/head/yr (1166)"]
["Kg CH4/Kg BOD",708,"Kg CH4/Kg BOD (708)"]
["Kg CH4/Kg COD",709,"Kg CH4/Kg COD (709)"]
["kg CH4/t wet waste",4340,"kg CH4/t wet waste (4340)"]
["kg CH4/TJ",511,"kg CH4/TJ (511)"]
["kg CH4/tonne ferroalloy produced",522,"kg CH4/tonne ferroalloy produced (522)"]
["kg CH4/tonne of acrylonitrile produced",469,"kg CH4/tonne of acrylonitrile produced (469)"]
["kg CH4/tonne of carbon black produced",475,"kg CH4/tonne of carbon black produced (475)"]
["kg CH4/tonne of ethylene oxide produced",464,"kg CH4/tonne of ethylene oxide produced (464)"]
["kg CH4/tonne of ethylene produced",444,"kg CH4/tonne of ethylene produced (444)"]
["kg CH4/tonne of methanol produced",421,"kg CH4/tonne of methanol produced (421)"]
["kg CH4/tonne of vinyl chloride monomer produced",457,"kg CH4/tonne of vinyl chloride monomer produced (457)"]
["kg CH4/tonne petrol coke consumed",318,"kg CH4/tonne petrol coke consumed (318)"]
["kg CH4/tonne silicon carbide produced",319,"kg CH4/tonne silicon carbide produced (319)"]
["kg CH4/tonne sinter produced",510,"kg CH4/tonne sinter produced (510)"]
["kg CHF3/kg c-C4F8",601,"kg CHF3/kg c-C4F8 (601)"]
["kg CHF3/m^2 of silicon processed",559,"kg CHF3/m^2 of silicon processed (559)"]
["kg CO/tonne adipic acid produced",315,"kg CO/tonne adipic acid produced (315)"]
["kg CO/tonne NH3 produced",312,{"$f":"CONCATENATE(A195, \" (\", B195, \")\")","v":"kg CO/tonne NH3 produced (312)"}]
["kg CO/tonne of asphalt",304,"kg CO/tonne of asphalt (304)"]
["kg CO/tonne of asphalt roofing produced",303,"kg CO/tonne of asphalt roofing produced (303)"]
["kg CO2 equiv. / ton wet waste",4367,"kg CO2 equiv. / ton wet waste (4367)"]
["kg CO2 foss/ton waste",4371,"kg CO2 foss/ton waste (4371)"]
["kg CO2-eq t-1 rw",4365,"kg CO2-eq t-1 rw (4365)"]
["kg CO2-eq./tonne wet waste",4374,"kg CO2-eq./tonne wet waste (4374)"]
["kg CO2-eq./tonne ww",4380,"kg CO2-eq./tonne ww (4380)"]
["kg CO2/GJ",4364,"kg CO2/GJ (4364)"]
["kg CO2/ha",4238,"kg CO2/ha (4238)"]
["kg CO2/ha/day",2204,"kg CO2/ha/day (2204)"]
["kg CO2/Tonne Carbide produced",216,"kg CO2/Tonne Carbide produced (216)"]
["kg CO2/tonne dolomite",299,"kg CO2/tonne dolomite (299)"]
["kg CO2/tonne limestone",298,"kg CO2/tonne limestone (298)"]
["kg CO2/tonne of soda ash used",301,"kg CO2/tonne of soda ash used (301)"]
["kg CO2/tonnes steel produced",340,"kg CO2/tonnes steel produced (340)"]
["kg COD/m3 wastewater",199,"kg COD/m3 wastewater (199)"]
["kg d.m./kg d.m.",2171,"kg d.m./kg d.m. (2171)"]
["kg d.m./kg fresh weight",2147,"kg d.m./kg fresh weight (2147)"]
["kg DOC / tonne of waste landfilled",4262,"kg DOC / tonne of waste landfilled (4262)"]
["kg HFC-23/kg HCFC-22 manufactured",477,"kg HFC-23/kg HCFC-22 manufactured (477)"]
["kg hydrogen cyanide/tonne acrylonitrile",471,"kg hydrogen cyanide/tonne acrylonitrile (471)"]
["kg N/1000 kg animal mass/day",1955,"kg N/1000 kg animal mass/day (1955)"]
["kg N/head/yr",1972,"kg N/head/yr (1972)"]
["kg N/kg crop-N",234,"kg N/kg crop-N (234)"]
["kg N/kg N totally excreted",235,"kg N/kg N totally excreted (235)"]
["kg N/kg of dry biomass",238,"kg N/kg of dry biomass (238)"]
["kg N/kg protein",713,"kg N/kg protein (713)"]
["kg N/[kg N additions or deposition by grazing animals]",2193,"kg N/[kg N additions or deposition by grazing animals] (2193)"]
["kg N2O-N / kg N in the wastewater",4354,"kg N2O-N / kg N in the wastewater (4354)"]
["kg N2O-N / kg removed N",4352,"kg N2O-N / kg removed N (4352)"]
["kg N2O-N / t wet waste",4325,"kg N2O-N / t wet waste (4325)"]
["kg N2O-N/ha/yr",233,"kg N2O-N/ha/yr (233)"]
["Kg N2O-N/kg -N",711,"Kg N2O-N/kg -N (711)"]
["kg N2O-N/kg N denitrified",4326,"kg N2O-N/kg N denitrified (4326)"]
["Kg N2O-N/kg N excreted",288,"Kg N2O-N/kg N excreted (288)"]
["kg N2O-N/kg N input",232,"kg N2O-N/kg N input (232)"]
["Kg N2O-N/kg N leaching/runoff",290,"Kg N2O-N/kg N leaching/runoff (290)"]
["Kg N2O-N/kg NH3-N ands NOx - N emitted",289,"Kg N2O-N/kg NH3-N ands NOx - N emitted (289)"]
["Kg N2O-N/kg sewage-N produced",291,"Kg N2O-N/kg sewage-N produced (291)"]
["kg N2O/Gg sewage sludge (dry matter)",211,"kg N2O/Gg sewage sludge (dry matter) (211)"]
["kg N2O/Gg sewage sludge (wet)",210,"kg N2O/Gg sewage sludge (wet) (210)"]
["kg N2O/Gg waste (dry)",208,"kg N2O/Gg waste (dry) (208)"]
["kg N2O/Gg waste (wet)",209,"kg N2O/Gg waste (wet) (209)"]
["kg N2O/ha",4244,"kg N2O/ha (4244)"]
["kg N2O/t wet waste",4341,"kg N2O/t wet waste (4341)"]
["kg N2O/tonne adipic acid production",373,"kg N2O/tonne adipic acid production (373)"]
["kg N2O/tonne caprolactam produced",412,"kg N2O/tonne caprolactam produced (412)"]
["kg N2O/tonne nitric acid produced",215,"kg N2O/tonne nitric acid produced (215)"]
["kg N2O–N/ha",2142,"kg N2O–N/ha (2142)"]
["kg N2O–N/[kg NH3–N + NOX–N volatilised]",2190,"kg N2O–N/[kg NH3–N + NOX–N volatilised] (2190)"]
["kg NF3/m^2 of silicon processed",561,"kg NF3/m^2 of silicon processed (561)"]
["kg NH3-N and NOx-N/kg of N excreted by livestock",237,"kg NH3-N and NOx-N/kg of N excreted by livestock (237)"]
["kg NH3-N and NOx-N/kg of N input",236,"kg NH3-N and NOx-N/kg of N input (236)"]
["kg NMVOC/tonne adipic acid produced",316,"kg NMVOC/tonne adipic acid produced (316)"]
["kg NMVOC/tonne of asphalt",307,"kg NMVOC/tonne of asphalt (307)"]
["kg NMVOC/tonne of asphalt roofing produced",302,"kg NMVOC/tonne of asphalt roofing produced (302)"]
["kg NMVOC/tonne of glass produced",308,"kg NMVOC/tonne of glass produced (308)"]
["kg NO2/tonne of asphalt",306,"kg NO2/tonne of asphalt (306)"]
["kg NOx/tonne adipic acid produced",314,"kg NOx/tonne adipic acid produced (314)"]
["kg NOx/tonne nitric acid produced",313,"kg NOx/tonne nitric acid produced (313)"]
["kg protein/person.year",4401,"kg protein/person.year (4401)"]
["kg SF6/m^2 of silicon processed",562,"kg SF6/m^2 of silicon processed (562)"]
["kg SF6/tonne magnesium casting",547,"kg SF6/tonne magnesium casting (547)"]
["kg SF6/tonnes magnesium produced or smelted",344,{"$f":"CONCATENATE(A259, \" (\", B259, \")\")","v":"kg SF6/tonnes magnesium produced or smelted (344)"}]
["kg SO2/tonne cement produced",297,"kg SO2/tonne cement produced (297)"]
["kg SO2/tonne NH3 produced",310,"kg SO2/tonne NH3 produced (310)"]
["kg SO2/tonne of asphalt",305,"kg SO2/tonne of asphalt (305)"]
["kg SO2/tonne of concrete pumice stone produced",309,"kg SO2/tonne of concrete pumice stone produced (309)"]
["kg/1000 persons/yr",194,"kg/1000 persons/yr (194)"]
["kg/1000000 m3",130,"kg/1000000 m3 (130)"]
["kg/accelerator",635,"kg/accelerator (635)"]
["kg/animal/yr",239,"kg/animal/yr (239)"]
["kg/bed day",4358,"kg/bed day (4358)"]
["kg/cap/day",191,"kg/cap/day (191)"]
["kg/capita",146,"kg/capita (146)"]
["kg/capita/day",4405,"kg/capita/day (4405)"]
["kg/Gg waste wet weight",724,"kg/Gg waste wet weight (724)"]
["kg/h.m2",145,"kg/h.m2 (145)"]
["kg/ha/day",365,"kg/ha/day (365)"]
["kg/head/yr",228,"kg/head/yr (228)"]
["kg/LTO",178,"kg/LTO (178)"]
["kg/m2/day",4342,"kg/m2/day (4342)"]
["kg/m3 ethanol",200,"kg/m3 ethanol (200)"]
["kg/m3 Oil",337,"kg/m3 Oil (337)"]
["kg/m3 Refinery Feedstock",338,"kg/m3 Refinery Feedstock (338)"]
["kg/m3 wood",154,"kg/m3 wood (154)"]
["kg/Mg creosote",153,"kg/Mg creosote (153)"]
["kg/Mg gas",131,"kg/Mg gas (131)"]
["kg/Mg gas transp.",135,"kg/Mg gas transp. (135)"]
["kg/Mg ink consumed",151,"kg/Mg ink consumed (151)"]
["kg/Mg mater. cleaned",148,"kg/Mg mater. cleaned (148)"]
["kg/Mg of solvent",143,"kg/Mg of solvent (143)"]
["kg/Mg oil",132,"kg/Mg oil (132)"]
["kg/Mg oil transp.",136,"kg/Mg oil transp. (136)"]
["kg/Mg product",155,"kg/Mg product (155)"]
["kg/Mg seed",152,"kg/Mg seed (152)"]
["kg/Mg solvent",147,"kg/Mg solvent (147)"]
["kg/Mg wood",156,"kg/Mg wood (156)"]
["kg/person",4460,"kg/person (4460)"]
["kg/person/yr",4343,"kg/person/yr (4343)"]
["kg/PJ of gas consumed",332,"kg/PJ of gas consumed (332)"]
["kg/PJ of gas processed",335,"kg/PJ of gas processed (335)"]
["kg/PJ of gas produced",329,"kg/PJ of gas produced (329)"]
["kg/PJ of oil and gas produced",330,"kg/PJ of oil and gas produced (330)"]
["kg/PJ of oil produced",328,"kg/PJ of oil produced (328)"]
["kg/PJ of oil refined",331,"kg/PJ of oil refined (331)"]
["kg/PJ oil tankered",334,"kg/PJ oil tankered (334)"]
["kg/plane/year",634,"kg/plane/year (634)"]
["kg/t dm",292,"kg/t dm (292)"]
["kg/t fuel",325,"kg/t fuel (325)"]
["KG/TJ",293,"KG/TJ (293)"]
["kg/ton FM",4362,"kg/ton FM (4362)"]
["kg/tonne adipic acid produced",224,"kg/tonne adipic acid produced (224)"]
["kg/tonne Al",221,"kg/tonne Al (221)"]
["kg/tonne Sulphur",333,"kg/tonne Sulphur (333)"]
["kg/tonnes metal",346,"kg/tonnes metal (346)"]
["kg/tonnes product",347,"kg/tonnes product (347)"]
["kg/unit",144,"kg/unit (144)"]
["kg/well drilled",134,"kg/well drilled (134)"]
["kgN2O/t ADA production",368,"kgN2O/t ADA production (368)"]
["litres CH4/m^2/hour",4464,"litres CH4/m^2/hour (4464)"]
["m3 biogas / tonne waste",4363,"m3 biogas / tonne waste (4363)"]
["m3/animal",197,"m3/animal (197)"]
["m3/cap/day",2771,"m3/cap/day (2771)"]
["m3/ha",358,"m3/ha (358)"]
["m3/ha/year",359,"m3/ha/year (359)"]
["m3/m3 beer",196,"m3/m3 beer (196)"]
["m3/m3 ethanol",195,{"$f":"CONCATENATE(A323, \" (\", B323, \")\")","v":"m3/m3 ethanol (195)"}]
["m3/Mg",2775,"m3/Mg (2775)"]
["m3/tonne",327,"m3/tonne (327)"]
["m3/tonne of coal",4268,"m3/tonne of coal (4268)"]
["m3/tonnes of product",198,"m3/tonnes of product (198)"]
["mass fraction, dry basis",4235,"mass fraction, dry basis (4235)"]
["mg CH4/m2-day",275,"mg CH4/m2-day (275)"]
["mg CH4/m^2/s",4462,"mg CH4/m^2/s (4462)"]
["mg CH4–C/h*t",4360,"mg CH4–C/h*t (4360)"]
["Mg/facility",129,"Mg/facility (129)"]
["mg/g",4408,"mg/g (4408)"]
["mg/GJ",190,"mg/GJ (190)"]
["Mg/ha",4312,"Mg/ha (4312)"]
["mg/km",2270,"mg/km (2270)"]
["mg/m2/h",4334,"mg/m2/h (4334)"]
["mg/Mg pig iron",187,"mg/Mg pig iron (187)"]
["mg/Mg steel",188,"mg/Mg steel (188)"]
["mg/start",2276,"mg/start (2276)"]
["Mg/terminal",133,"Mg/terminal (133)"]
["Mg/TJ",4469,"Mg/TJ (4469)"]
["Mha",366,"Mha (366)"]
["microg/Mg of product",189,"microg/Mg of product (189)"]
["microg/Mg steel",185,"microg/Mg steel (185)"]
["microgramme N2O–N/m2/h",4333,"microgramme N2O–N/m2/h (4333)"]
["microgramme/Mg waste",186,"microgramme/Mg waste (186)"]
["million m^3/mine/year",2646,"million m^3/mine/year (2646)"]
["MJ/d/kg",1150,"MJ/d/kg (1150)"]
["MJ/kg",326,"MJ/kg (326)"]
["MJ/kg d.m.",1162,"MJ/kg d.m. (1162)"]
["MJ/kg^2",1159,"MJ/kg^2 (1159)"]
["months",753,"months (753)"]
["m^3 CH4/Mg",4233,"m^3 CH4/Mg (4233)"]
["m^3/ton",4459,"m^3/ton (4459)"]
["m^3/tonne of coal production",2634,"m^3/tonne of coal production (2634)"]
["No dimension",229,"No dimension (229)"]
["parts per million",351,"parts per million (351)"]
["per year",2194,"per year (2194)"]
["percentage of dry matter",4412,"percentage of dry matter (4412)"]
["percentage of organic matter",4413,"percentage of organic matter (4413)"]
["See `Equation` field",4272,"See `Equation` field (4272)"]
["t CO2/TJ",352,"t CO2/TJ (352)"]
["t dm/ha",230,"t dm/ha (230)"]
["t/t-DOC",4347,"t/t-DOC (4347)"]
["tC/TJ",243,"tC/TJ (243)"]
["TJ/Gg",2216,"TJ/Gg (2216)"]
["TJ/kt",240,"TJ/kt (240)"]
["tonne C / tonne d.m.",4407,"tonne C / tonne d.m. (4407)"]
["tonne C/year",364,"tonne C/year (364)"]
["tonne CO2/tonne Al",538,"tonne CO2/tonne Al (538)"]
["tonne CO2/tonne carbide produced",413,"tonne CO2/tonne carbide produced (413)"]
["tonne CO2/tonne carbide used",416,"tonne CO2/tonne carbide used (416)"]
["tonne CO2/tonne carbonate",374,"tonne CO2/tonne carbonate (374)"]
["tonne CO2/tonne cement produced",296,"tonne CO2/tonne cement produced (296)"]
["tonne CO2/tonne clinker produced",295,"tonne CO2/tonne clinker produced (295)"]
["tonne CO2/tonne coke produced",500,"tonne CO2/tonne coke produced (500)"]
["tonne CO2/tonne DRI produced",504,"tonne CO2/tonne DRI produced (504)"]
["tonne CO2/tonne ferroalloy produced",512,"tonne CO2/tonne ferroalloy produced (512)"]
["tonne CO2/tonne glass",384,"tonne CO2/tonne glass (384)"]
["tonne CO2/tonne high calcium lime produced",382,"tonne CO2/tonne high calcium lime produced (382)"]
["tonne CO2/tonne hydraulic lime produced",294,"tonne CO2/tonne hydraulic lime produced (294)"]
["Tonne CO2/Tonne Iron or Steel Product",219,"Tonne CO2/Tonne Iron or Steel Product (219)"]
["tonne CO2/tonne lead produced",550,"tonne CO2/tonne lead produced (550)"]
["tonne CO2/tonne lime produced",381,"tonne CO2/tonne lime produced (381)"]
["Tonne CO2/tonne NH3 produced",214,"Tonne CO2/tonne NH3 produced (214)"]
["tonne CO2/tonne of acrylonitrile produced",466,{"$f":"CONCATENATE(A387, \" (\", B387, \")\")","v":"tonne CO2/tonne of acrylonitrile produced (466)"}]
["tonne CO2/tonne of carbon black produced",472,"tonne CO2/tonne of carbon black produced (472)"]
["tonne CO2/tonne of ethylene dichloride produced",451,"tonne CO2/tonne of ethylene dichloride produced (451)"]
["tonne CO2/tonne of ethylene oxide produced",462,"tonne CO2/tonne of ethylene oxide produced (462)"]
["tonne CO2/tonne of ethylene produced",442,"tonne CO2/tonne of ethylene produced (442)"]
["tonne CO2/tonne of methanol produced",420,"tonne CO2/tonne of methanol produced (420)"]
["tonne CO2/tonne of soda ash produced",419,"tonne CO2/tonne of soda ash produced (419)"]
["tonne CO2/tonne of vinyl chloride monomer produced",452,"tonne CO2/tonne of vinyl chloride monomer produced (452)"]
["tonne CO2/tonne pellet produced",505,"tonne CO2/tonne pellet produced (505)"]
["tonne CO2/tonne petrol coke consumed",317,"tonne CO2/tonne petrol coke consumed (317)"]
["tonne CO2/tonne pig iron produced",503,"tonne CO2/tonne pig iron produced (503)"]
["tonne CO2/tonne primary Mg produced",548,"tonne CO2/tonne primary Mg produced (548)"]
["Tonne CO2/Tonne Product",220,"Tonne CO2/Tonne Product (220)"]
["Tonne CO2/Tonne Reducing Agent",218,"Tonne CO2/Tonne Reducing Agent (218)"]
["tonne CO2/tonne sinter produced",502,"tonne CO2/tonne sinter produced (502)"]
["tonne CO2/tonne steel produced",506,"tonne CO2/tonne steel produced (506)"]
["tonne CO2/tonne titanium dioxide produced",417,"tonne CO2/tonne titanium dioxide produced (417)"]
["tonne CO2/tonne zinc produced",554,"tonne CO2/tonne zinc produced (554)"]
["tonne ethylene/tonne of ethylene dichloride produced",458,"tonne ethylene/tonne of ethylene dichloride produced (458)"]
["tonne ethylene/tonne of vinyl chloride monomer produced",461,"tonne ethylene/tonne of vinyl chloride monomer produced (461)"]
["tonne root d.m. / tonne shoot d.m.",4406,"tonne root d.m. / tonne shoot d.m. (4406)"]
["tonne root d.m./tonne shoot d.m.",765,"tonne root d.m./tonne shoot d.m. (765)"]
["tonne-C/Terajoule",350,"tonne-C/Terajoule (350)"]
["tonnes biomass/m^3  of wood volume",789,"tonnes biomass/m^3  of wood volume (789)"]
["tonnes C/ha",274,"tonnes C/ha (274)"]
["tonnes C/ha crown cover/yr",1148,"tonnes C/ha crown cover/yr (1148)"]
["tonnes C/ha/yr",355,"tonnes C/ha/yr (355)"]
["tonnes C/tonne air-dry peat",1142,"tonnes C/tonne air-dry peat (1142)"]
["tonnes C/tonne dry matter",754,"tonnes C/tonne dry matter (754)"]
["tonnes CO2/tonne of trona",300,"tonnes CO2/tonne of trona (300)"]
["tonnes CO2/tonnes dolomitic lime",213,"tonnes CO2/tonnes dolomitic lime (213)"]
["tonnes CO2/tonnes quicklime produced",212,"tonnes CO2/tonnes quicklime produced (212)"]
["tonnes dm/ha/year",273,"tonnes dm/ha/year (273)"]
["tonnes dm/m3 fresh volume",367,"tonnes dm/m3 fresh volume (367)"]
["tonnes dry matter/ha",954,"tonnes dry matter/ha (954)"]
["tonnes HFC-23/tonnes HCFC-22 manufactured",348,"tonnes HFC-23/tonnes HCFC-22 manufactured (348)"]
["tonnes of gas emitted per tonnes of gas consumed",356,"tonnes of gas emitted per tonnes of gas consumed (356)"]
["tonnes/cap/yr",641,"tonnes/cap/yr (641)"]
["tons CH4 per ton DOCinfluent",4349,"tons CH4 per ton DOCinfluent (4349)"]
["Unit -  k: /year;  t_1/2: year",4259,"Unit -  k: /year;  t_1/2: year (4259)"]
["unit_cu",4478,"unit_cu (4478)"]
["years",357,"years (357)"]
["[kg N retained/animal/yr]/[kg N intake/animal/yr]",2115,"[kg N retained/animal/yr]/[kg N intake/animal/yr] (2115)"]
["[kg NH3–N + NOx–N]/[kg N applied or deposited]",2192,"[kg NH3–N + NOx–N]/[kg N applied or deposited] (2192)"]
["[kg NH3–N + NOx–N]/[kg N applied]",2191,"[kg NH3–N + NOx–N]/[kg N applied] (2191)"]

{"sheet":"Distribution Shapes","index":9,"n_rows":6,"n_cols":1,"rows_kept":6,"cut":false,"hidden":false,"merged":[]}
["Distribution Shape (ID)"]
["Normal (1)"]
["Log normal (2)"]
["Uniform (3)"]
["Triangle (4)"]
["Other (5)"]

{"sheet":"EF Types","index":10,"n_rows":10,"n_cols":1,"rows_kept":10,"cut":false,"hidden":false,"merged":[]}
["EF_type"]
["Measured (1)"]
["Modelled (2)"]
["Other [e.g. Compiled] (3)"]
["1996 IPCC default (4)"]
["2006 IPCC default (7)"]
["2013 WS default (8)"]
["2013 KP default (9)"]
["1996 & 2006 IPCC default (10)"]
["2019 Refinement default (11)"]

{"sheet":"Countries","index":11,"n_rows":199,"n_cols":1,"rows_kept":199,"cut":false,"hidden":false,"merged":[]}
["Country (CODE)"]
["(Not applicable) (001)"]
["(Unknown) (000)"]
["Afghanistan (AFG)"]
["Albania (ALB)"]
["Algeria (ALG)"]
["Andorra (AND)"]
["Angola (ANG)"]
["Antigua and Barbuda (ANT)"]
["Argentina (ARG)"]
["Armenia (ARM)"]
["Australia (AUS)"]
["Austria (AUT)"]
["Azerbaijan (AZE)"]
["Bahamas (BHM)"]
["Bahrain (BAH)"]
["Bangladesh (BAN)"]
["Barbados (BAR)"]
["Belarus (BLR)"]
["Belgium (BEL)"]
["Belize (BLZ)"]
["Benin (BEN)"]
["Bhutan (BTN)"]
["Bolivia (BOL)"]
["Bosnia and Herzegovina (BIH)"]
["Botswana (BWA)"]
["Brazil (BRA)"]
["Brunei Darussalam (BRN)"]
["Bulgaria (BGR)"]
["Burkina Faso (BFA)"]
["Burundi (BDI)"]
["Cambodia (CBG)"]
["Cameroon (CME)"]
["Canada (CAN)"]
["Cape Verde (CPV)"]
["Central African Republic (CAF)"]
["Chad (CHD)"]
["Chile (CHL)"]
["China (CHN)"]
["Colombia (CLM)"]
["Comoros (COM)"]
["Congo (COG)"]
["Congo, Democratic Republic of (ZAI)"]
["Costa Rica (CTR)"]
["Croatia (HRV)"]
["Cuba (CUB)"]
["Cyprus (CYP)"]
["Czech Republic (CZE)"]
["Democratic People's Republic of Korea (DKO)"]
["Democratic Republic of the Congo (DRG)"]
["Denmark (DNK)"]
["Djibouti (DJI)"]
["Dominica (DMA)"]
["Dominican Republic (DOM)"]
["Ecuador (EQA)"]
["Egypt (EGY)"]
["El Salvador (SLV)"]
["Equatorial Guinea (EGI)"]
["Eritrea (ERI)"]
["Estonia (EST)"]
["Ethiopia (ETB)"]
["Fiji (FJI)"]
["Finland (FIN)"]
["France (FRA)"]
["Gabon (GAB)"]
["Gambia (GMB)"]
["Georgia (GEO)"]
["Germany (DEU)"]
["Ghana (GHA)"]
["Greece (GRC)"]
["Grenada (GRD)"]
["Guatemala (GTM)"]
["Guinea (GNA)"]
["Guinea-Bissau (GNB)"]
["Guyana (GUY)"]
["Haiti (HTI)"]
["Honduras (HND)"]
["HongKong (HKG)"]
["Hungary (HUN)"]
["Iceland (ISL)"]
["India (IND)"]
["Indonesia (IDN)"]
["Iran (IRN)"]
["Iraq (IRQ)"]
["Ireland (IRL)"]
["Israel (ISR)"]
["Italy (ITA)"]
["Ivory Coast (CTI)"]
["Jamaica (JMC)"]
["Japan (JPN)"]
["Jordan (JOR)"]
["Kazakhstan (KAZ)"]
["Kenya (KEN)"]
["Kiribati (KIR)"]
["Kuwait (KWT)"]
["Kyrgyzstan (KGZ)"]
["Lao People's Democratic Republic (LAO)"]
["Latvia (LVA)"]
["Lebanon (LBN)"]
["Lesotho (LSO)"]
["Liberia (LBR)"]
["Libyan Arab Jamahiriya (LBY)"]
["Liechtenstein (LIE)"]
["Lithuania (LTU)"]
["Luxembourg (LUX)"]
["Madagascar (MDG)"]
["Malawi (MWI)"]
["Malaysia (MLA)"]
["Maldives (MLD)"]
["Mali (MLI)"]
["Malta (MLT)"]
["Marshall Islands (MHL)"]
["Mauritania (MTN)"]
["Mauritius (MAU)"]
["Mexico (MEX)"]
["Micronesia (FSM)"]
["Monaco (MCO)"]
["Mongolia (MNG)"]
["Morocco (MRC)"]
["Mozambique (MOZ)"]
["Myanmar (BRM)"]
["Namibia (NMB)"]
["Nauru (NRU)"]
["Nepal (NPL)"]
["Netherlands (NLD)"]
["Netherlands Antilles (NTA)"]
["Neutral Zone (NTZ)"]
["New Zealand (NZL)"]
["Nicaragua (NCG)"]
["Niger (NGR)"]
["Nigeria (NIG)"]
["Norway (NOR)"]
["Oman (OMN)"]
["Pakistan (PAK)"]
["Palau (PLW)"]
["Panama (PAN)"]
["Papua New Guinea (PNG)"]
["Paraguay (PRG)"]
["Peru (PRU)"]
["Philippines (PHL)"]
["Poland (POL)"]
["Portugal (PRT)"]
["Qatar (QAT)"]
["Republic of Korea (KOR)"]
["Republic of Moldova (MDA)"]
["Romania (ROM)"]
["Russian Federation (RUS)"]
["Rwanda (RRW)"]
["Saint Kitts and Nevis (SCN)"]
["Saint Lucia (LCA)"]
["Saint Vincent and the Grenadines (VCT)"]
["Samoa (SAO)"]
["San Marino (SMR)"]
["Sao Tome and Principe (STP)"]
["Saudi Arabia (SAU)"]
["Senegal (SEN)"]
["Serbia (SRB)"]
["Seychelles (SEY)"]
["Sierra Leone (SRL)"]
["Singapore (SNG)"]
["Slovakia (SVK)"]
["Slovenia (SVN)"]
["Solomon Islands (SLM)"]
["Somalia (SOM)"]
["South Africa (SAF)"]
["Spain (ESP)"]
["Sri Lanka (CLN)"]
["Sudan (SDN)"]
["Suriname (SUR)"]
["Swaziland (SWZ)"]
["Sweden (SWE)"]
["Switzerland (CHF)"]
["Syrian Arab Republic (SYR)"]
["Taiwan (TAI)"]
["Tajikistan (TJK)"]
["Thailand (THA)"]
["The former Yugoslav Republic of Macedonia (MKD)"]
["Togo (TGO)"]
["Tonga (TON)"]
["Trinidad and Tobago (TRD)"]
["Tunisia (TUN)"]
["Turkey (TUR)"]
["Turkmenistan (TKM)"]
["Tuvalu (TUV)"]
["Uganda (UGA)"]
["Ukraine (UKR)"]
["United Arab Emirates (UAE)"]
["United Kingdom of Great Britain and Northern Ireland (GBR)"]
["United Republic of Tanzania (TZA)"]
["United States of America (USA)"]
["Uruguay (URG)"]
["Uzbekistan (UZB)"]
["Vanuatu (VUT)"]
["Venezuela (VEN)"]
["Viet Nam (VTN)"]
["Yemen (YEM)"]
["Yugoslavia (YUG)"]
["Zambia (ZMB)"]
["Zimbabwe (ZWE)"]

{"sheet":"Source of Data","index":12,"n_rows":6,"n_cols":1,"rows_kept":6,"cut":false,"hidden":false,"merged":[]}
["Source of Data"]
["Peer-reviewed journal"]
["National Inventory Report (Annex I)"]
["National Communications"]
["Biennial Update Report"]
["Other"]

{"sheet":"Confidence Limit","index":13,"n_rows":2,"n_cols":1,"rows_kept":2,"cut":false,"hidden":false,"merged":[]}
["Confidence limit"]
["Unknown"]